Workbook

Sheet Data summary
A1: RUN # 2 | B1: Rate classes | C1: Weather station used for normalization | H1: Test Year
A2: 1 | B2: Residential class | C2: Toronto Pearson | H2: 2004
A3: 2 | B3: Streetlights
A4: 3 | B4: Sentinellights
A5: 4 | B5: General service <50kW
A6: 5 | B6: General service >50kW
A7: 6 | B7: USL
A8: 7 | B8: Large User
A11: Monthly kWh by class (with actual weather) | C11: Jan | D11: Feb | E11: Mar | F11: Apr | G11: May | H11: Jun | I11: Jul | J11: Aug | K11: Sep | L11: Oct | M11: Nov | N11: Dec | O11: TOTAL
A12: 1 | B12: Residential class | C12: 24255196.81 | D12: 21360437.21 | E12: 18790115.46 | F12: 18252470.86 | G12: 17297523.46 | H12: 20916324.84 | I12: 22527045.93 | J12: 18792336.93 | K12: 16625592.03 | L12: 18323453.23 | M12: 18550845.47 | N12: 20538995.14 | O12: 236230337.4
A13: 2 | B13: Streetlights | C13: 475229.8067 | D13: 394284.5984 | E13: 388226.6236 | F13: 329522.9557 | G13: 298188.7642 | H13: 268065.5919 | I13: 291227.4658 | J13: 328538.105 | K13: 364293.6505 | L13: 425665.1437 | M13: 438465.1269 | N13: 493181.1368 | O13: 4494888.969
A14: 3 | B14: Sentinellights | C14: 29029.18198 | D14: 27156.33153 | E14: 29029.18198 | F14: 28092.75675 | G14: 29029.18197 | H14: 28092.75675 | I14: 29029.18197 | J14: 29029.18198 | K14: 28092.75675 | L14: 29029.18198 | M14: 28092.75675 | N14: 29029.18198 | O14: 342731.6324
A15: 4 | B15: General service <50kW | C15: 9619719.425 | D15: 9841523.252 | E15: 9518593.942 | F15: 8924700.21 | G15: 8336874.912 | H15: 10941535.12 | I15: 9434611.81 | J15: 8378425.429 | K15: 8575728.356 | L15: 8727993.871 | M15: 8564334.743 | N15: 9522118.331 | O15: 110386159.4
A16: 5 | B16: General service >50kW | C16: 26402594.02 | D16: 22769102.91 | E16: 26334979.92 | F16: 21685234.9 | G16: 24291821.65 | H16: 20513142.95 | I16: 24334505.92 | J16: 28511449.66 | K16: 28492999.65 | L16: 23745106.94 | M16: 24017547.85 | N16: 28398519.09 | O16: 299497005.5
A17: 6 | B17: USL | C17: 18364.89875 | D17: 18364.89875 | E17: 18364.89875 | F17: 18364.89875 | G17: 18364.89875 | H17: 18364.89875 | I17: 18364.89875 | J17: 18364.89875 | K17: 18364.89875 | L17: 18364.89875 | M17: 18364.89875 | N17: 18364.89875 | O17: 220378.785
A18: 7 | B18: Large User | C18: 2069738.342 | D18: 2143108.445 | E18: 2647619.431 | F18: 2703761.246 | G18: 2951346.684 | H18: 3195652.014 | I18: 2803330.96 | J18: 3354874.584 | K18: 3303740.929 | L18: 3151098.062 | M18: 3250274.735 | N18: 2920188.043 | O18: 34494733.47
A21: Monthly kWh by class (with normalized weather) | C21: Jan | D21: Feb | E21: Mar | F21: Apr | G21: May | H21: Jun | I21: Jul | J21: Aug | K21: Sep | L21: Oct | M21: Nov | N21: Dec | O21: TOTAL
A22: 1 | B22: Residential class | C22: 23553192.13 | D22: 21584974.51 | E22: 19221568.78 | F22: 18301193.59 | G22: 17473410.53 | H22: 21769326.28 | I22: 23306621.25 | J22: 19497591.09 | K22: 15743621.71 | L22: 18590208.36 | M22: 18942393.5 | N22: 20414464.21 | O22: 238398565.9 | Q22: =O22 -> 238398565.9 | R22: ='Hourly load shapes by class'!N8787 -> 282139763.4 | S22: =R22/Q22 -> 1.183479281
A23: 2 | B23: Streetlights | C23: 475229.8067 | D23: 394284.5984 | E23: 388226.6236 | F23: 329522.9557 | G23: 298188.7642 | H23: 268065.5919 | I23: 291227.4658 | J23: 328538.105 | K23: 364293.6505 | L23: 425665.1437 | M23: 438465.1269 | N23: 493181.1368 | O23: 4494888.969 | Q23: =O23 -> 4494888.969 | R23: ='Hourly load shapes by class'!P8787 -> 2565174.351 | S23: =R23/Q23 -> 0.5706869222
A24: 3 | B24: Sentinellights | C24: 29029.18198 | D24: 27156.33153 | E24: 29029.18198 | F24: 28092.75675 | G24: 29029.18197 | H24: 28092.75675 | I24: 29029.18197 | J24: 29029.18198 | K24: 28092.75675 | L24: 29029.18198 | M24: 28092.75675 | N24: 29029.18198 | O24: 342731.6324 | Q24: 342731.6324 | R24: ='Hourly load shapes by class'!Q8787 -> 275116.0358 | S24: 0.8027156231
A25: 4 | B25: General service <50kW | C25: 9432834.21 | D25: 9901298.405 | E25: 9633453.761 | F25: 8937671.325 | G25: 8386158.743 | H25: 11207145.92 | I25: 9677359.019 | J25: 8598030.285 | K25: 8312669.171 | L25: 8799007.671 | M25: 8668570.794 | N25: 9488965.68 | O25: 111043165 | Q25: 111043165 | R25: ='Hourly load shapes by class'!S8787 -> 91548981.9 | S25: 0.8244449977
A26: 5 | B26: General service >50kW | C26: 25408128.28 | D26: 23087184.33 | E26: 26946180.33 | F26: 21754255.94 | G26: 24532001.51 | H26: 21580829.04 | I26: 25310285.9 | J26: 29394203.21 | K26: 27346797.63 | L26: 24122994.51 | M26: 24572218.08 | N26: 28222107.52 | O26: 302277186.3 | Q26: 302277186.3 | R26: ='Hourly load shapes by class'!O8787 -> 278825252.3 | S26: 0.9224157991
A27: 6 | B27: USL | C27: 18364.89875 | D27: 18364.89875 | E27: 18364.89875 | F27: 18364.89875 | G27: 18364.89875 | H27: 18364.89875 | I27: 18364.89875 | J27: 18364.89875 | K27: 18364.89875 | L27: 18364.89875 | M27: 18364.89875 | N27: 18364.89875 | O27: 220378.785 | Q27: 220378.785 | R27: ='Hourly load shapes by class'!R8787 -> 552036.9835 | S27: 2.504946125
A28: 7 | B28: Large User | C28: 2069738.342 | D28: 2143108.445 | E28: 2647619.431 | F28: 2703761.246 | G28: 2951346.684 | H28: 3195652.014 | I28: 2803330.96 | J28: 3354874.584 | K28: 3303740.929 | L28: 3151098.062 | M28: 3250274.735 | N28: 2920188.043 | O28: 34494733.47
Q29: =SUM(Q22:Q28) -> 656776916.6 | R29: =SUM(R22:R28) -> 655906325
A31: Residential class information | C31: Equipment saturation
B32: Electric space heating | C32: 0.09556243169
B33: Electric water heating | C33: 0.1382316314
B34: Air conditioning | C34: 0.617335785
B35: Baseload | C35: 1
A38: General service >50kW | C38: 2004 kWh (Actual) | D38: 2004 kWh (Weather Corrected)
B39: Weather sensitive load | C39: 191654660.8 | D39: 194434841.6
B40: Non-weather sensitive load | C40: 107842344.6 | D40: 107842344.6
B41: TOTAL | C41: 299497005.5 | D41: 302277186.3
A44: Large User | C44: 2004 kWh (Actual) | D44: 2004 kWh (Weather Corrected)
B45: Weather sensitive load | C45: 0 | D45: 0
B46: Non-weather sensitive load | C46: 34494733.47 | D46: 34494733.47
B47: TOTAL | C47: 34494733.47 | D47: 34494733.47

Sheet Hourly load shapes by class
A1: ALL UNITS IN GWh | K1: 2018 Actual Sales | N1: 282139763.4 | O1: 278825252.3 | P1: 2565174.351 | Q1: 275116.0358 | R1: 552036.9835 | S1: 91548981.9 | T1: =SUM(N1:S1) -> 655906325
A2: Year | B2: Month | C2: Day | D2: Hour (EST) | E2: Residential | F2: GS>50kW | G2: Street Lighting | H2: Sentinel Lighting | I2: USL | J2: GS<50 | K2: LU | L2: TOTAL LDC sales | N2: =E2 -> Residential | O2: =F2 -> GS>50kW | P2: Street Lighting | Q2: Sentinel Lighting | R2: USL | S2: GS<50 | T2: =L2 -> TOTAL LDC sales
A3: 2004 | B3: 1 | C3: 1 | D3: 1 | E3: 0.02528145129 | F3: 0.02331649947 | G3: 0.001039299068 | H3: 6.34850789e-05 | I3: 2.46840037e-05 | J3: 0.01084458364 | K3: 0.0011239806 | L3: 0.06169398314 | N3: =E3/E8787*N1 -> 29920.07379 | O3: =F3/$F$8787*$O$1 -> 21507.50749 | P3: =G3/$G$8787*$P$1 -> 593.1143865 | Q3: =H3/$H$8787*$Q$1 -> 50.96046467 | R3: =I3/$I$8787*$R$1 -> 61.83209941 | S3: =J3/$J$8787*$S$1 -> 8940.76273 | T3: =SUM(N3:S3) -> 61074.25096
A4: 2004 | B4: 1 | C4: 1 | D4: 2 | E4: 0.02293176916 | F4: 0.02316683435 | G4: 0.001039299068 | H4: 6.34850789e-05 | I4: 2.46840037e-05 | J4: 0.009504898697 | K4: 0.0011227368 | L4: 0.05785370716 | N4: =E4/$E$8787*$N$1 -> 27139.27368 | O4: =F4/$F$8787*$O$1 -> 21369.45402 | P4: =G4/$G$8787*$P$1 -> 593.1143865 | Q4: =H4/$H$8787*$Q$1 -> 50.96046467 | R4: =I4/$I$8787*$R$1 -> 61.83209941 | S4: =J4/$J$8787*$S$1 -> 7836.266185 | T4: =SUM(N4:S4) -> 57050.90083
A5: 2004 | B5: 1 | C5: 1 | D5: 3 | E5: 0.0219266855 | F5: 0.02302069154 | G5: 0.001039299068 | H5: 6.34850789e-05 | I5: 2.46840037e-05 | J5: 0.00858949767 | K5: 0.0011200419 | L5: 0.05578438476 | N5: 25949.77798 | O5: 21234.64959 | P5: 593.1143865 | Q5: 50.96046467 | R5: 61.83209941 | S5: 7081.568387 | T5: 54971.90291
A6: 2004 | B6: 1 | C6: 1 | D6: 4 | E6: 0.0204721866 | F6: 0.02298126217 | G6: 0.001039299068 | H6: 6.34850789e-05 | I6: 2.46840037e-05 | J6: 0.009216941442 | K6: 0.0011246025 | L6: 0.05492246087 | N6: 24228.40868 | O6: 21198.27931 | P6: 593.1143865 | Q6: 50.96046467 | R6: 61.83209941 | S6: 7598.861266 | T6: 53731.45621
A7: 2004 | B7: 1 | C7: 1 | D7: 5 | E7: 0.02062729983 | F7: 0.02314528753 | G7: 0.001039299068 | H7: 6.34850789e-05 | I7: 2.46840037e-05 | J7: 0.009065974512 | K7: 0.0011291631 | L7: 0.05509519312 | N7: 24411.98197 | O7: 21349.57889 | P7: 593.1143865 | Q7: 50.96046467 | R7: 61.83209941 | S7: 7474.397336 | T7: 53941.86515
A8: 2004 | B8: 1 | C8: 1 | D8: 6 | E8: 0.02136737264 | F8: 0.02349456501 | G8: 0.001039299068 | H8: 6.34850789e-05 | I8: 2.46840037e-05 | J8: 0.00941063328 | K8: 0.0011293704 | L8: 0.05652940948 | N8: 25287.84281 | O8: 21671.75796 | P8: 593.1143865 | Q8: 50.96046467 | R8: 61.83209941 | S8: 7758.549533 | T8: 55424.05725
A9: 2004 | B9: 1 | C9: 1 | D9: 7 | E9: 0.02256667372 | F9: 0.02426428685 | G9: 0.001039299068 | H9: 6.34850789e-05 | I9: 2.46840037e-05 | J9: 0.01070983773 | K9: 0.001125639 | L9: 0.05979390545 | N9: 26707.19079 | O9: 22381.76154 | P9: 593.1143865 | Q9: 50.96046467 | R9: 61.83209941 | S9: 8829.672141 | T9: 58624.53142
A10: 2004 | B10: 1 | C10: 1 | D10: 8 | E10: 0.0248720048 | F10: 0.02522346872 | G10: 0.0007794743012 | H10: 4.761380918e-05 | I10: 2.46840037e-05 | J10: 0.01302808342 | K10: 0.0011227368 | L10: 0.06509806586 | N10: 29435.50235 | O10: 23266.52606 | P10: 444.8357899 | Q10: 38.2203485 | R10: 61.83209941 | S10: 10740.93821 | T10: 63987.85486
A11: 2004 | B11: 1 | C11: 1 | D11: 9 | E11: 0.02881919324 | F11: 0.02606821526 | G11: 0 | H11: 0 | I11: 2.46840037e-05 | J11: 0.01434425035 | K11: 0.0011179689 | L11: 0.07037431175 | N11: 34106.91809 | O11: 24045.73361 | P11: 0 | Q11: 0 | R11: 61.83209941 | S11: 11826.04545 | T11: 70040.52924
A12: 2004 | B12: 1 | C12: 1 | D12: 10 | E12: 0.03153747901 | F12: 0.02687486835 | G12: 0 | H12: 0 | I12: 2.46840037e-05 | J12: 0.01373216749 | K12: 0.0010874958 | L12: 0.07325669466 | N12: 37323.95298 | O12: 24789.80317 | P12: 0 | Q12: 0 | R12: 61.83209941 | S12: 11321.4168 | T12: 73497.00505
A13: 2004 | B13: 1 | C13: 1 | D13: 11 | E13: 0.03150393506 | F13: 0.02782255703 | G13: 0 | H13: 0 | I13: 2.46840037e-05 | J13: 0.01611189918 | K13: 0.0010860447 | L13: 0.07654911997 | N13: 37284.25441 | O13: 25663.96618 | P13: 0 | Q13: 0 | R13: 61.83209941 | S13: 13283.37468 | T13: 76293.42737
A14: 2004 | B14: 1 | C14: 1 | D14: 12 | E14: 0.03266546125 | F14: 0.02845203372 | G14: 0 | H14: 0 | I14: 2.46840037e-05 | J14: 0.01546846376 | K14: 0.0010848009 | L14: 0.07769544363 | N14: 38658.89659 | O14: 26244.60542 | P14: 0 | Q14: 0 | R14: 61.83209941 | S14: 12752.89757 | T14: 77718.23168
A15: 2004 | B15: 1 | C15: 1 | D15: 13 | E15: 0.03328353255 | F15: 0.02858076319 | G15: 0 | H15: 0 | I15: 2.46840037e-05 | J15: 0.0166966015 | K15: 0.0010901907 | L15: 0.07967577195 | N15: 39390.37117 | O15: 26363.34752 | P15: 0 | Q15: 0 | R15: 61.83209941 | S15: 13765.42959 | T15: 79580.98037
A16: 2004 | B16: 1 | C16: 1 | D16: 14 | E16: 0.03201304153 | F16: 0.02837880077 | G16: 0 | H16: 0 | I16: 2.46840037e-05 | J16: 0.01667631464 | K16: 0.0010928856 | L16: 0.07818572654 | N16: 37886.77137 | O16: 26177.05419 | P16: 0 | Q16: 0 | R16: 61.83209941 | S16: 13748.70419 | T16: 77874.36184
A17: 2004 | B17: 1 | C17: 1 | D17: 15 | E17: 0.03077738358 | F17: 0.02830476161 | G17: 0 | H17: 0 | I17: 2.46840037e-05 | J17: 0.01713405558 | K17: 0.0010916418 | L17: 0.07733252657 | N17: 36424.39578 | O17: 26108.7593 | P17: 0 | Q17: 0 | R17: 61.83209941 | S17: 14126.08641 | T17: 76721.0736
A18: 2004 | B18: 1 | C18: 1 | D18: 16 | E18: 0.03229721224 | F18: 0.02811126158 | G18: 0 | H18: 0 | I18: 2.46840037e-05 | J18: 0.01707988571 | K18: 0.0010914345 | L18: 0.07860447804 | N18: 38223.08152 | O18: 25930.27181 | P18: 0 | Q18: 0 | R18: 61.83209941 | S18: 14081.42634 | T18: 78296.61177
A19: 2004 | B19: 1 | C19: 1 | D19: 17 | E19: 0.03657683885 | F19: 0.02847891355 | G19: 0 | H19: 0 | I19: 2.46840037e-05 | J19: 0.01769796635 | K19: 0.0010918491 | L19: 0.08387025186 | N19: 43287.93094 | O19: 26269.3998 | P19: 0 | Q19: 0 | R19: 61.83209941 | S19: 14590.99983 | T19: 84210.16267
A20: 2004 | B20: 1 | C20: 1 | D20: 18 | E20: 0.04129488827 | F20: 0.0284694658 | G20: 0.001039299068 | H20: 6.34850789e-05 | I20: 2.46840037e-05 | J20: 0.02009029465 | K20: 0.0010991046 | L20: 0.09208122147 | N20: 48871.64468 | O20: 26260.68505 | P20: 593.1143865 | Q20: 50.96046467 | R20: 61.83209941 | S20: 16563.34293 | T20: 92401.5796
A21: 2004 | B21: 1 | C21: 1 | D21: 19 | E21: 0.04351456182 | F21: 0.02759860065 | G21: 0.001039299068 | H21: 6.34850789e-05 | I21: 2.46840037e-05 | J21: 0.01788004489 | K21: 0.0011335164 | L21: 0.09125419191 | N21: 51498.58233 | O21: 25457.38527 | P21: 593.1143865 | Q21: 50.96046467 | R21: 61.83209941 | S21: 14741.11357 | T21: 92402.98812
A22: 2004 | B22: 1 | C22: 1 | D22: 20 | E22: 0.04176865757 | F22: 0.02668522579 | G22: 0.001039299068 | H22: 6.34850789e-05 | I22: 2.46840037e-05 | J22: 0.01811765176 | K22: 0.0011351748 | L22: 0.08883417807 | N22: 49432.34082 | O22: 24614.87387 | P22: 593.1143865 | Q22: 50.96046467 | R22: 61.83209941 | S22: 14937.00737 | T22: 89690.12901
A23: 2004 | B23: 1 | C23: 1 | D23: 21 | E23: 0.04056105484 | F23: 0.02603416296 | G23: 0.001039299068 | H23: 6.34850789e-05 | I23: 2.46840037e-05 | J23: 0.01760268037 | K23: 0.0012719928 | L23: 0.08659735911 | N23: 48003.16801 | O23: 24014.32323 | P23: 593.1143865 | Q23: 50.96046467 | R23: 61.83209941 | S23: 14512.44178 | T23: 87235.83997
A24: 2004 | B24: 1 | C24: 1 | D24: 22 | E24: 0.03761488895 | F24: 0.02548354093 | G24: 0.001039299068 | H24: 6.34850789e-05 | I24: 2.46840037e-05 | J24: 0.01538053593 | K24: 0.0015785895 | L24: 0.08118502345 | N24: 44516.44172 | O24: 23506.42077 | P24: 593.1143865 | Q24: 50.96046467 | R24: 61.83209941 | S24: 12680.40591 | T24: 81409.17535
A25: 2004 | B25: 1 | C25: 1 | D25: 23 | E25: 0.03419992539 | F25: 0.02506166149 | G25: 0.001039299068 | H25: 6.34850789e-05 | I25: 2.46840037e-05 | J25: 0.01287989195 | K25: 0.0017255652 | L25: 0.07499451218 | N25: 40474.90311 | O25: 23117.27251 | P25: 593.1143865 | Q25: 50.96046467 | R25: 61.83209941 | S25: 10618.76249 | T25: 74916.84505
A26: 2004 | B26: 1 | C26: 1 | D26: 24 | E26: 0.02704623814 | F26: 0.0249696827 | G26: 0.001039631577 | H26: 6.350539007e-05 | I26: 2.46840037e-05 | J26: 0.0126099547 | K26: 0.0017713785 | L26: 0.06752507502 | N26: 32008.66247 | O26: 23032.42982 | P26: 593.3041451 | Q26: 50.97676876 | R26: 61.83209941 | S26: 10396.21408 | T26: 66143.41938
A27: 2004 | B27: 1 | C27: 2 | D27: 1 | E27: 0.02452678289 | F27: 0.02584436012 | G27: 0.001039299068 | H27: 6.34850789e-05 | I27: 2.46840037e-05 | J27: 0.006257571591 | K27: 0.0018273495 | L27: 0.05958353225 | N27: 29026.93937 | O27: 23839.24609 | P27: 593.1143865 | Q27: 50.96046467 | R27: 61.83209941 | S27: 5159.023596 | T27: 58731.11601
A28: 2004 | B28: 1 | C28: 2 | D28: 2 | E28: 0.02209180534 | F28: 0.02560683154 | G28: 0.001039299068 | H28: 6.34850789e-05 | I28: 2.46840037e-05 | J28: 0.004822842486 | K28: 0.0018418605 | L28: 0.05549080802 | N28: 26145.1939 | O28: 23620.14598 | P28: 593.1143865 | Q28: 50.96046467 | R28: 61.83209941 | S28: 3976.168362 | T28: 54447.4152
A29: 2004 | B29: 1 | C29: 2 | D29: 3 | E29: 0.02119957605 | F29: 0.0253236808 | G29: 0.001039299068 | H29: 6.34850789e-05 | I29: 2.46840037e-05 | J29: 0.00382868719 | K29: 0.0018082779 | L29: 0.0532876901 | N29: 25089.25902 | O29: 23358.96326 | P29: 593.1143865 | Q29: 50.96046467 | R29: 61.83209941 | S29: 3156.542001 | T29: 52310.67124
A30: 2004 | B30: 1 | C30: 2 | D30: 4 | E30: 0.02008554058 | F30: 0.02512072697 | G30: 0.001039299068 | H30: 6.34850789e-05 | I30: 2.46840037e-05 | J30: 0.004257224602 | K30: 0.0018093144 | L30: 0.0524002747 | N30: 23770.82112 | O30: 23171.75544 | P30: 593.1143865 | Q30: 50.96046467 | R30: 61.83209941 | S30: 3509.847528 | T30: 51158.33103
A31: 2004 | B31: 1 | C31: 2 | D31: 5 | E31: 0.01996266349 | F31: 0.02551475485 | G31: 0.001039299068 | H31: 6.34850789e-05 | I31: 2.46840037e-05 | J31: 0.003979634293 | K31: 0.0020230407 | L31: 0.05260756149 | N31: 23625.39864 | O31: 23535.21298 | P31: 593.1143865 | Q31: 50.96046467 | R31: 61.83209941 | S31: 3280.989586 | T31: 51147.50816
A32: 2004 | B32: 1 | C32: 2 | D32: 6 | E32: 0.02109500857 | F32: 0.02662261167 | G32: 0.001039299068 | H32: 6.34850789e-05 | I32: 2.46840037e-05 | J32: 0.002876785195 | K32: 0.0025817142 | L32: 0.05430358779 | N32: 24965.50558 | O32: 24557.11762 | P32: 593.1143865 | Q32: 50.96046467 | R32: 61.83209941 | S32: 2371.751164 | T32: 52600.28131
A33: 2004 | B33: 1 | C33: 2 | D33: 7 | E33: 0.02288344661 | F33: 0.02895536954 | G33: 0.001039299068 | H33: 6.34850789e-05 | I33: 2.46840037e-05 | J33: 0.002513828794 | K33: 0.002607834 | L33: 0.05808794709 | N33: 27082.08494 | O33: 26708.89033 | P33: 593.1143865 | Q33: 50.96046467 | R33: 61.83209941 | S33: 2072.513574 | T33: 56569.39579
A34: 2004 | B34: 1 | C34: 2 | D34: 8 | E34: 0.02487613825 | F34: 0.03213256703 | G34: 0.0007794743012 | H34: 4.761380918e-05 | I34: 2.46840037e-05 | J34: 0.003671752211 | K34: 0.0026716824 | L34: 0.06420391201 | N34: 29440.39421 | O34: 29639.58749 | P34: 444.8357899 | Q34: 38.2203485 | R34: 61.83209941 | S34: 3027.157743 | T34: 62652.02768
A35: 2004 | B35: 1 | C35: 2 | D35: 9 | E35: 0.02726124179 | F35: 0.03472892359 | G35: 0 | H35: 0 | I35: 2.46840037e-05 | J35: 0.003703529421 | K35: 0.0032052726 | L35: 0.06892365141 | N35: 32263.11483 | O35: 32034.50781 | P35: 0 | Q35: 0 | R35: 61.83209941 | S35: 3053.356305 | T35: 67412.81104
A36: 2004 | B36: 1 | C36: 2 | D36: 10 | E36: 0.02931908558 | F36: 0.03580285154 | G36: 0 | H36: 0 | I36: 2.46840037e-05 | J36: 0.005951389913 | K36: 0.0031826769 | L36: 0.07428068794 | N36: 34698.53032 | O36: 33025.11591 | P36: 0 | Q36: 0 | R36: 61.83209941 | S36: 4906.593644 | T36: 72692.07197
A37: 2004 | B37: 1 | C37: 2 | D37: 11 | E37: 0.02949234628 | F37: 0.03638163251 | G37: 0 | H37: 0 | I37: 2.46840037e-05 | J37: 0.006841124102 | K37: 0.003271194 | L37: 0.0760109809 | N37: 34903.58077 | O37: 33558.99263 | P37: 0 | Q37: 0 | R37: 61.83209941 | S37: 5640.130544 | T37: 74164.53605
A38: 2004 | B38: 1 | C38: 2 | D38: 12 | E38: 0.02959880595 | F38: 0.0364875402 | G38: 0 | H38: 0 | I38: 2.46840037e-05 | J38: 0.009106213483 | K38: 0.0033823068 | L38: 0.07859955044 | N38: 35029.57359 | O38: 33656.68355 | P38: 0 | Q38: 0 | R38: 61.83209941 | S38: 7507.572154 | T38: 76255.66139
A39: 2004 | B39: 1 | C39: 2 | D39: 13 | E39: 0.02895027317 | F39: 0.03617853157 | G39: 0 | H39: 0 | I39: 2.46840037e-05 | J39: 0.01067184093 | K39: 0.0033926718 | L39: 0.07921800148 | N39: 34262.04848 | O39: 33371.64911 | P39: 0 | Q39: 0 | R39: 61.83209941 | S39: 8798.345868 | T39: 76493.87556
A40: 2004 | B40: 1 | C40: 2 | D40: 14 | E40: 0.03156085304 | F40: 0.03595545334 | G40: 0 | H40: 0 | I40: 2.46840037e-05 | J40: 0.00701512609 | K40: 0.0034129872 | L40: 0.07796910367 | N40: 37351.61566 | O40: 33165.87823 | P40: 0 | Q40: 0 | R40: 61.83209941 | S40: 5783.585614 | T40: 76362.9116
A41: 2004 | B41: 1 | C41: 2 | D41: 15 | E41: 0.02973230323 | F41: 0.03549037257 | G41: 0 | H41: 0 | I41: 2.46840037e-05 | J41: 0.008055876332 | K41: 0.0034735188 | L41: 0.07677675494 | N41: 35187.56485 | O41: 32736.88038 | P41: 0 | Q41: 0 | R41: 61.83209941 | S41: 6641.626944 | T41: 74627.90427
A42: 2004 | B42: 1 | C42: 2 | D42: 16 | E42: 0.0298447735 | F42: 0.03457698483 | G42: 0 | H42: 0 | I42: 2.46840037e-05 | J42: 0.009694918853 | K42: 0.003368625 | L42: 0.07750998619 | N42: 35320.67108 | O42: 31894.3571 | P42: 0 | Q42: 0 | R42: 61.83209941 | S42: 7992.927352 | T42: 75269.78763
A43: 2004 | B43: 1 | C43: 2 | D43: 17 | E43: 0.0338153429 | F43: 0.03396410047 | G43: 0 | H43: 0 | I43: 2.46840037e-05 | J43: 0.01139996393 | K43: 0.0033014598 | L43: 0.0825055511 | N43: 40019.7577 | O43: 31329.02287 | P43: 0 | Q43: 0 | R43: 61.83209941 | S43: 9398.643239 | T43: 80809.25591
A44: 2004 | B44: 1 | C44: 2 | D44: 18 | E44: 0.04149697405 | F44: 0.03339544451 | G44: 0.001039299068 | H44: 6.34850789e-05 | I44: 2.46840037e-05 | J44: 0.01157956106 | K44: 0.0032508786 | L44: 0.09085032636 | N44: 49110.809 | O44: 30804.48563 | P44: 593.1143865 | Q44: 50.96046467 | R44: 61.83209941 | S44: 9546.711191 | T44: 90167.91278
A45: 2004 | B45: 1 | C45: 2 | D45: 19 | E45: 0.04343130237 | F45: 0.03303909116 | G45: 0.001039299068 | H45: 6.34850789e-05 | I45: 2.46840037e-05 | J45: 0.009518944461 | K45: 0.0027981354 | L45: 0.08991494154 | N45: 51400.0465 | O45: 30475.77968 | P45: 593.1143865 | Q45: 50.96046467 | R45: 61.83209941 | S45: 7847.846144 | T45: 90429.57927
A46: 2004 | B46: 1 | C46: 2 | D46: 20 | E46: 0.04019290973 | F46: 0.03239731885 | G46: 0.001039299068 | H46: 6.34850789e-05 | I46: 2.46840037e-05 | J46: 0.01075199868 | K46: 0.0026922051 | L46: 0.08716190051 | N46: 47567.47591 | O46: 29883.79875 | P46: 593.1143865 | Q46: 50.96046467 | R46: 61.83209941 | S46: 8864.431529 | T46: 87021.61314
A47: 2004 | B47: 1 | C47: 2 | D47: 21 | E47: 0.03895490113 | F47: 0.03178563811 | G47: 0.001039299068 | H47: 6.34850789e-05 | I47: 2.46840037e-05 | J47: 0.01025124103 | K47: 0.0026922051 | L47: 0.08481145352 | N47: 46102.31838 | O47: 29319.57477 | P47: 593.1143865 | Q47: 50.96046467 | R47: 61.83209941 | S47: 8451.58439 | T47: 84579.38449
A48: 2004 | B48: 1 | C48: 2 | D48: 22 | E48: 0.03726761611 | F48: 0.02974466244 | G48: 0.001039299068 | H48: 6.34850789e-05 | I48: 2.46840037e-05 | J48: 0.009196017742 | K48: 0.0026360268 | L48: 0.07997179124 | N48: 44105.45151 | O48: 27436.94658 | P48: 593.1143865 | Q48: 50.96046467 | R48: 61.83209941 | S48: 7581.610826 | T48: 79829.91587
A49: 2004 | B49: 1 | C49: 2 | D49: 23 | E49: 0.03482655207 | F49: 0.02757378242 | G49: 0.001039299068 | H49: 6.34850789e-05 | I49: 2.46840037e-05 | J49: 0.006608076191 | K49: 0.0025344498 | L49: 0.07267032863 | N49: 41216.5028 | O49: 25434.49255 | P49: 593.1143865 | Q49: 50.96046467 | R49: 61.83209941 | S49: 5447.99536 | T49: 72804.89766
A50: 2004 | B50: 1 | C50: 2 | D50: 24 | E50: 0.02908736131 | F50: 0.0257167828 | G50: 0.001039631577 | H50: 6.350539007e-05 | I50: 2.46840037e-05 | J50: 0.007617846378 | K50: 0.0024614802 | L50: 0.06601129165 | N50: 34424.28944 | O50: 23721.56676 | P50: 593.3041451 | Q50: 50.97676876 | R50: 61.83209941 | S50: 6280.49534 | T50: 65132.46455
A51: 2004 | B51: 1 | C51: 3 | D51: 1 | E51: 0.02545388915 | F51: 0.02469408218 | G51: 0.001039299068 | H51: 6.34850789e-05 | I51: 2.46840037e-05 | J51: 0.009966986764 | K51: 0.0024753693 | L51: 0.06371779554 | N51: 30124.15043 | O51: 22778.21154 | P51: 593.1143865 | Q51: 50.96046467 | R51: 61.83209941 | S51: 8217.23238 | T51: 61825.5013
A52: 2004 | B52: 1 | C52: 3 | D52: 2 | E52: 0.02268501418 | F52: 0.02431863436 | G52: 0.001039299068 | H52: 6.34850789e-05 | I52: 2.46840037e-05 | J52: 0.009371272286 | K52: 0.0024616875 | L52: 0.05996407648 | N52: 26847.24427 | O52: 22431.89255 | P52: 593.1143865 | Q52: 50.96046467 | R52: 61.83209941 | S52: 7726.098559 | T52: 57711.14233
A53: 2004 | B53: 1 | C53: 3 | D53: 3 | E53: 0.02194472658 | F53: 0.02398908216 | G53: 0.001039299068 | H53: 6.34850789e-05 | I53: 2.46840037e-05 | J53: 0.00847108892 | K53: 0.0024160815 | L53: 0.05794844731 | N53: 25971.12923 | O53: 22127.90839 | P53: 593.1143865 | Q53: 50.96046467 | R53: 61.83209941 | S53: 6983.946885 | T53: 55788.89145
A54: 2004 | B54: 1 | C54: 3 | D54: 4 | E54: 0.02128172383 | F54: 0.02395987242 | G54: 0.001039299068 | H54: 6.34850789e-05 | I54: 2.46840037e-05 | J54: 0.008511992114 | K54: 0.0024169107 | L54: 0.05729796722 | N54: 25186.47921 | O54: 22100.96487 | P54: 593.1143865 | Q54: 50.96046467 | R54: 61.83209941 | S54: 7017.669319 | T54: 55011.02035
A55: 2004 | B55: 1 | C55: 3 | D55: 5 | E55: 0.02043588807 | F55: 0.024169213 | G55: 0.001039299068 | H55: 6.34850789e-05 | I55: 2.46840037e-05 | J55: 0.008834705697 | K55: 0.0024115209 | L55: 0.05697879582 | N55: 24185.45012 | O55: 22294.06392 | P55: 593.1143865 | Q55: 50.96046467 | R55: 61.83209941 | S55: 7283.728918 | T55: 54469.14991
A56: 2004 | B56: 1 | C56: 3 | D56: 6 | E56: 0.02152194457 | F56: 0.02474939102 | G56: 0.001039299068 | H56: 6.34850789e-05 | I56: 2.46840037e-05 | J56: 0.008703685541 | K56: 0.0024131793 | L56: 0.05851566858 | N56: 25470.77549 | O56: 22829.22929 | P56: 593.1143865 | Q56: 50.96046467 | R56: 61.83209941 | S56: 7175.710006 | T56: 56181.62173
A57: 2004 | B57: 1 | C57: 3 | D57: 7 | E57: 0.02322669131 | F57: 0.0259111146 | G57: 0.001039299068 | H57: 6.34850789e-05 | I57: 2.46840037e-05 | J57: 0.008888520198 | K57: 0.0024061311 | L57: 0.06155992536 | N57: 27488.30793 | O57: 23900.82148 | P57: 593.1143865 | Q57: 50.96046467 | R57: 61.83209941 | S57: 7328.096015 | T57: 59423.13237
A58: 2004 | B58: 1 | C58: 3 | D58: 8 | E58: 0.02516775317 | F58: 0.02797550167 | G58: 0.0007794743012 | H58: 4.761380918e-05 | I58: 2.46840037e-05 | J58: 0.008561414913 | K58: 0.0024102771 | L58: 0.06496671896 | N58: 29785.51442 | O58: 25805.04473 | P58: 444.8357899 | Q58: 38.2203485 | R58: 61.83209941 | S58: 7058.415698 | T58: 63193.86308
A59: 2004 | B59: 1 | C59: 3 | D59: 9 | E59: 0.02885732673 | F59: 0.02929355248 | G59: 0 | H59: 0 | I59: 2.46840037e-05 | J59: 0.009985624982 | K59: 0.0024048873 | L59: 0.0705660755 | N59: 34152.04828 | O59: 27020.83562 | P59: 0 | Q59: 0 | R59: 61.83209941 | S59: 8232.598565 | T59: 69467.31457
A60: 2004 | B60: 1 | C60: 3 | D60: 10 | E60: 0.03045167071 | F60: 0.03028637388 | G60: 0 | H60: 0 | I60: 2.46840037e-05 | J60: 0.012088784 | K60: 0.0023841573 | L60: 0.07523566989 | N60: 36038.92135 | O60: 27936.62976 | P60: 0 | Q60: 0 | R60: 61.83209941 | S60: 9966.537496 | T60: 74003.92071
A61: 2004 | B61: 1 | C61: 3 | D61: 11 | E61: 0.03054804241 | F61: 0.03071146595 | G61: 0 | H61: 0 | I61: 2.46840037e-05 | J61: 0.01500663707 | K61: 0.0023464287 | L61: 0.07863725813 | N61: 36152.97526 | O61: 28328.74141 | P61: 0 | Q61: 0 | R61: 61.83209941 | S61: 12372.14686 | T61: 76915.69563
A62: 2004 | B62: 1 | C62: 3 | D62: 12 | E62: 0.03087469719 | F62: 0.03051712859 | G62: 0 | H62: 0 | I62: 2.46840037e-05 | J62: 0.01594731545 | K62: 0.0022691058 | L62: 0.07963293103 | N62: 36539.56443 | O62: 28149.48155 | P62: 0 | Q62: 0 | R62: 61.83209941 | S62: 13147.68445 | T62: 77898.56253
A63: 2004 | B63: 1 | C63: 3 | D63: 13 | E63: 0.03201849766 | F63: 0.03032428451 | G63: 0 | H63: 0 | I63: 2.46840037e-05 | J63: 0.01432103149 | K63: 0.0022852752 | L63: 0.07897377286 | N63: 37893.22858 | O63: 27971.59913 | P63: 0 | Q63: 0 | R63: 61.83209941 | S63: 11806.90278 | T63: 77733.56259
A64: 2004 | B64: 1 | C64: 3 | D64: 14 | E64: 0.03154203118 | F64: 0.03020425168 | G64: 0 | H64: 0 | I64: 2.46840037e-05 | J64: 0.01395600974 | K64: 0.0022875555 | L64: 0.0780145321 | N64: 37329.34038 | O64: 27860.87895 | P64: 0 | Q64: 0 | R64: 61.83209941 | S64: 11505.96241 | T64: 76758.01384
A65: 2004 | B65: 1 | C65: 3 | D65: 15 | E65: 0.03281544572 | F65: 0.03014319695 | G65: 0 | H65: 0 | I65: 2.46840037e-05 | J65: 0.01184396787 | K65: 0.0022956402 | L65: 0.07712293475 | N65: 38836.4001 | O65: 27804.5611 | P65: 0 | Q65: 0 | R65: 61.83209941 | S65: 9764.700067 | T65: 76467.49337
A66: 2004 | B66: 1 | C66: 3 | D66: 16 | E66: 0.03187160506 | F66: 0.0297906527 | G66: 0 | H66: 0 | I66: 2.46840037e-05 | J66: 0.01226836295 | K66: 0.0022881774 | L66: 0.07624348212 | N66: 37719.38424 | O66: 27479.36872 | P66: 0 | Q66: 0 | R66: 61.83209941 | S66: 10114.59047 | T66: 75375.17552
A67: 2004 | B67: 1 | C67: 3 | D67: 17 | E67: 0.03439148508 | F67: 0.0297196618 | G67: 0 | H67: 0 | I67: 2.46840037e-05 | J67: 0.0145411907 | K67: 0.0022898358 | L67: 0.08096685738 | N67: 40701.61003 | O67: 27413.88559 | P67: 0 | Q67: 0 | R67: 61.83209941 | S67: 11988.41193 | T67: 80165.73965
A68: 2004 | B68: 1 | C68: 3 | D68: 18 | E68: 0.04022310705 | F68: 0.03004841608 | G68: 0.001039299068 | H68: 6.34850789e-05 | I68: 2.46840037e-05 | J68: 0.01259303719 | K68: 0.0022879701 | L68: 0.08627999857 | N68: =E68/$E$8787*$N$1 -> 47603.21381 | O68: =F68/$F$8787*$O$1 -> 27717.13373 | P68: =G68/$G$8787*$P$1 -> 593.1143865 | Q68: =H68/$H$8787*$Q$1 -> 50.96046467 | R68: =I68/$I$8787*$R$1 -> 61.83209941 | S68: =J68/$J$8787*$S$1 -> 10382.26652 | T68: =SUM(N68:S68) -> 86408.52101
A69: 2004 | B69: 1 | C69: 3 | D69: 19 | E69: 0.04019957975 | F69: 0.02912073702 | G69: 0.001039299068 | H69: 6.34850789e-05 | I69: 2.46840037e-05 | J69: 0.01576032554 | K69: 0.0023234184 | L69: 0.08853152886 | N69: 47575.36974 | O69: 26861.42791 | P69: 593.1143865 | Q69: 50.96046467 | R69: 61.83209941 | S69: 12993.52155 | T69: 88136.22615
A70: 2004 | B70: 1 | C70: 3 | D70: 20 | E70: 0.03861528818 | F70: 0.02794195252 | G70: 0.001039299068 | H70: 6.34850789e-05 | I70: 2.46840037e-05 | J70: 0.01398725096 | K70: 0.0021934413 | L70: 0.08386540111 | N70: 45700.39349 | O70: 25774.09846 | P70: 593.1143865 | Q70: 50.96046467 | R70: 61.83209941 | S70: 11531.71909 | T70: 83712.11799
A71: 2004 | B71: 1 | C71: 3 | D71: 21 | E71: 0.03667962649 | F71: 0.02728871686 | G71: 0.001039299068 | H71: 6.34850789e-05 | I71: 2.46840037e-05 | J71: 0.01490867753 | K71: 0.0021210936 | L71: 0.08212558262 | N71: 43409.57798 | O71: 25171.54356 | P71: 593.1143865 | Q71: 50.96046467 | R71: 61.83209941 | S71: 12291.38461 | T71: 81578.41311
A72: 2004 | B72: 1 | C72: 3 | D72: 22 | E72: 0.03496620897 | F72: 0.02649388035 | G72: 0.001039299068 | H72: 6.34850789e-05 | I72: 2.46840037e-05 | J72: 0.01331144582 | K72: 0.0017373813 | L72: 0.07763638459 | N72: 41381.78385 | O72: 24438.37382 | P72: 593.1143865 | Q72: 50.96046467 | R72: 61.83209941 | S72: 10974.55491 | T72: 77500.61953
A73: 2004 | B73: 1 | C73: 3 | D73: 23 | E73: 0.03216695113 | F73: 0.02544564801 | G73: 0.001039299068 | H73: 6.34850789e-05 | I73: 2.46840037e-05 | J73: 0.01219716089 | K73: 0.0017207973 | L73: 0.07265802548 | N73: 38068.9202 | O73: 23471.46774 | P73: 593.1143865 | Q73: 50.96046467 | R73: 61.83209941 | S73: 10055.88828 | T73: 72302.18317
A74: 2004 | B74: 1 | C74: 3 | D74: 24 | E74: 0.02831357239 | F74: 0.0245145834 | G74: 0.001039631577 | H74: 6.350539007e-05 | I74: 2.46840037e-05 | J74: 0.01149233766 | K74: 0.0017317842 | L74: 0.06718009862 | N74: 33508.52629 | O74: 22612.63904 | P74: 593.3041451 | Q74: 50.97676876 | R74: 61.83209941 | S74: 9474.800299 | T74: 66302.07864
A75: 2004 | B75: 1 | C75: 4 | D75: 1 | E75: 0.02433131148 | F75: 0.02385720762 | G75: 0.001039299068 | H75: 6.34850789e-05 | I75: 2.46840037e-05 | J75: 0.008685013388 | K75: 0.0017775975 | L75: 0.05977859814 | N75: 28795.60301 | O75: 22006.26523 | P75: 593.1143865 | Q75: 50.96046467 | R75: 61.83209941 | S75: 7160.315843 | T75: 58668.09104
A76: 2004 | B76: 1 | C76: 4 | D76: 2 | E76: 0.02194347771 | F76: 0.02339609739 | G76: 0.001039299068 | H76: 6.34850789e-05 | I76: 2.46840037e-05 | J76: 0.007574538309 | K76: 0.0018107655 | L76: 0.05585234706 | N76: 25969.65122 | O76: 21580.92987 | P76: 593.1143865 | Q76: 50.96046467 | R76: 61.83209941 | S76: 6244.790219 | T76: 54501.27826
A77: 2004 | B77: 1 | C77: 4 | D77: 3 | E77: 0.02083559163 | F77: 0.02338271105 | G77: 0.001039299068 | H77: 6.34850789e-05 | I77: 2.46840037e-05 | J77: 0.007646203513 | K77: 0.0017968764 | L77: 0.05478885074 | N77: 24658.491 | O77: 21568.5821 | P77: 593.1143865 | Q77: 50.96046467 | R77: 61.83209941 | S77: 6303.874238 | T77: 53236.85428
A78: 2004 | B78: 1 | C78: 4 | D78: 4 | E78: 0.01988701444 | F78: 0.02333695074 | G78: 0.001039299068 | H78: 6.34850789e-05 | I78: 2.46840037e-05 | J78: 0.007693000623 | K78: 0.0017956326 | L78: 0.05384006655 | N78: 23535.86955 | O78: 21526.37206 | P78: 593.1143865 | Q78: 50.96046467 | R78: 61.83209941 | S78: 6342.455881 | T78: 52110.60444
A79: 2004 | B79: 1 | C79: 4 | D79: 5 | E79: 0.02011438559 | F79: 0.02354998258 | G79: 0.001039299068 | H79: 6.34850789e-05 | I79: 2.46840037e-05 | J79: 0.00703326469 | K79: 0.0017921085 | L79: 0.05361720951 | N79: 23804.9586 | O79: 21722.876 | P79: 593.1143865 | Q79: 50.96046467 | R79: 61.83209941 | S79: 5798.539891 | T79: 52032.28144
A80: 2004 | B80: 1 | C80: 4 | D80: 6 | E80: 0.02054039329 | F80: 0.0239700485 | G80: 0.001039299068 | H80: 6.34850789e-05 | I80: 2.46840037e-05 | J80: 0.006874988076 | K80: 0.0017778048 | L80: 0.05429070282 | N80: 24309.12988 | O80: 22110.35144 | P80: 593.1143865 | Q80: 50.96046467 | R80: 61.83209941 | S80: 5668.049529 | T80: 52793.4378
A81: 2004 | B81: 1 | C81: 4 | D81: 7 | E81: 0.02160472243 | F81: 0.02468832747 | G81: 0.001039299068 | H81: 6.34850789e-05 | I81: 2.46840037e-05 | J81: 0.007537632981 | K81: 0.0017299185 | L81: 0.05668806953 | N81: 25568.74136 | O81: 22772.90331 | P81: 593.1143865 | Q81: 50.96046467 | R81: 61.83209941 | S81: 6214.363806 | T81: 55261.91543
A82: 2004 | B82: 1 | C82: 4 | D82: 8 | E82: 0.02388757608 | F82: 0.02587954845 | G82: 0.0007794743012 | H82: 4.761380918e-05 | I82: 2.46840037e-05 | J82: 0.006279626353 | K82: 0.0017313696 | L82: 0.05862989259 | N82: 28270.45136 | O82: 23871.70436 | P82: 444.8357899 | Q82: 38.2203485 | R82: 61.83209941 | S82: 5177.206534 | T82: 57864.25049
A83: 2004 | B83: 1 | C83: 4 | D83: 9 | E83: 0.0272992088 | F83: 0.02659629766 | G83: 0 | H83: 0 | I83: 2.46840037e-05 | J83: 0.006752656345 | K83: 0.0017259798 | L83: 0.0623988266 | N83: 32308.048 | O83: 24532.84515 | P83: 0 | Q83: 0 | R83: 61.83209941 | S83: 5567.193745 | T83: 62469.91899
A84: 2004 | B84: 1 | C84: 4 | D84: 10 | E84: 0.03016078186 | F84: 0.02743350755 | G84: 0 | H84: 0 | I84: 2.46840037e-05 | J84: 0.007510154843 | K84: 0.0018530547 | L84: 0.06698218296 | N84: 35694.66043 | O84: 25305.10079 | P84: 0 | Q84: 0 | R84: 61.83209941 | S84: 6191.709592 | T84: 67253.30291
A85: 2004 | B85: 1 | C85: 4 | D85: 11 | E85: 0.030432267 | F85: 0.02857735687 | G85: 0 | H85: 0 | I85: 2.46840037e-05 | J85: 0.008793405854 | K85: 0.0018435189 | L85: 0.06967123263 | N85: 36015.95747 | O85: 26360.20547 | P85: 0 | Q85: 0 | R85: 61.83209941 | S85: 7249.679469 | T85: 69687.67451
A86: 2004 | B86: 1 | C86: 4 | D86: 12 | E86: 0.03210044778 | F86: 0.0293262315 | G86: 0 | H86: 0 | I86: 2.46840037e-05 | J86: 0.009457579318 | K86: 0.0018675657 | L86: 0.0727765083 | N86: 37990.21485 | O86: 27050.97926 | P86: 0 | Q86: 0 | R86: 61.83209941 | S86: 7797.253959 | T86: 72900.28018
A87: 2004 | B87: 1 | C87: 4 | D87: 13 | E87: 0.03257603247 | F87: 0.02945017116 | G87: 0 | H87: 0 | I87: 2.46840037e-05 | J87: 0.01051338369 | K87: 0.0018443481 | L87: 0.07440861942 | N87: 38553.05948 | O87: 27165.30316 | P87: 0 | Q87: 0 | R87: 61.83209941 | S87: 8667.706595 | T87: 74447.90134
A88: 2004 | B88: 1 | C88: 4 | D88: 14 | E88: 0.03103148528 | F88: 0.02927359581 | G88: 0 | H88: 0 | I88: 2.46840037e-05 | J88: 0.011577183 | K88: 0.0018281787 | L88: 0.07373512679 | N88: 36725.11988 | O88: 27002.42727 | P88: 0 | Q88: 0 | R88: 61.83209941 | S88: 9544.750613 | T88: 73334.12987
A89: 2004 | B89: 1 | C89: 4 | D89: 15 | E89: 0.02976772568 | F89: 0.02930757422 | G89: 0 | H89: 0 | I89: 2.46840037e-05 | J89: 0.01137797452 | K89: 0.0016971651 | L89: 0.07217512352 | N89: 35229.48658 | O89: 27033.76949 | P89: 0 | Q89: 0 | R89: 61.83209941 | S89: 9380.514175 | T89: 71705.60234
A90: 2004 | B90: 1 | C90: 4 | D90: 16 | E90: 0.0317496067 | F90: 0.02901387666 | G90: 0 | H90: 0 | I90: 2.46840037e-05 | J90: 0.01073870261 | K90: 0.0017002746 | L90: 0.07322714457 | N90: 37575.0017 | O90: 26762.85823 | P90: 0 | Q90: 0 | R90: 61.83209941 | S90: 8853.469651 | T90: 73253.16168
A91: 2004 | B91: 1 | C91: 4 | D91: 17 | E91: 0.03548715881 | F91: 0.02934563068 | G91: 0 | H91: 0 | I91: 2.46840037e-05 | J91: 0.01168860831 | K91: 0.0018576153 | L91: 0.0784036971 | N91: 41998.3172 | O91: 27068.87337 | P91: 0 | Q91: 0 | R91: 61.83209941 | S91: 9636.61465 | T91: 78765.63732
A92: 2004 | B92: 1 | C92: 4 | D92: 18 | E92: 0.04060168337 | F92: 0.02919600253 | G92: 0.001039299068 | H92: 6.34850789e-05 | I92: 2.46840037e-05 | J92: 0.01251193173 | K92: 0.0019096476 | L92: 0.08534673338 | N92: 48051.25104 | O92: 26930.85401 | P92: 593.1143865 | Q92: 50.96046467 | R92: 61.83209941 | S92: 10315.39952 | T92: 86003.41152
A93: 2004 | B93: 1 | C93: 4 | D93: 19 | E93: 0.04285931762 | F93: 0.02818462349 | G93: 0.001039299068 | H93: 6.34850789e-05 | I93: 2.46840037e-05 | J93: 0.01246187947 | K93: 0.0019457178 | L93: 0.08657900652 | N93: 50723.11439 | O93: 25997.94199 | P93: 593.1143865 | Q93: 50.96046467 | R93: 61.83209941 | S93: 10274.13419 | T93: 87701.09753
A94: 2004 | B94: 1 | C94: 4 | D94: 20 | E94: 0.04151670665 | F94: 0.02732536458 | G94: 0.001039299068 | H94: 6.34850789e-05 | I94: 2.46840037e-05 | J94: 0.01100568795 | K94: 0.0019577412 | L94: 0.08293296854 | N94: 49134.16213 | O94: 25205.34801 | P94: 593.1143865 | Q94: 50.96046467 | R94: 61.83209941 | S94: 9073.58438 | T94: 84119.00147
A95: 2004 | B95: 1 | C95: 4 | D95: 21 | E95: 0.0402935355 | F95: 0.02673299361 | G95: 0.001039299068 | H95: 6.34850789e-05 | I95: 2.46840037e-05 | J95: 0.01065539805 | K95: 0.0019687281 | L95: 0.08077812341 | N95: 47686.56442 | O95: 24658.93566 | P95: 593.1143865 | Q95: 50.96046467 | R95: 61.83209941 | S95: 8784.789624 | T95: 81836.19665
A96: 2004 | B96: 1 | C96: 4 | D96: 22 | E96: 0.03756305928 | F96: 0.02642180836 | G96: 0.001039299068 | H96: 6.34850789e-05 | I96: 2.46840037e-05 | J96: 0.009398079164 | K96: 0.001946547 | L96: 0.07645696195 | N96: 44455.10238 | O96: 24371.89347 | P96: 593.1143865 | Q96: 50.96046467 | R96: 61.83209941 | S96: 7748.199355 | T96: 77281.10215
A97: 2004 | B97: 1 | C97: 4 | D97: 23 | E97: 0.03365215027 | F97: 0.02657937528 | G97: 0.001039299068 | H97: 6.34850789e-05 | I97: 2.46840037e-05 | J97: 0.007634527297 | K97: 0.0019902873 | L97: 0.0709838083 | N97: 39826.6226 | O97: 24517.23569 | P97: 593.1143865 | Q97: 50.96046467 | R97: 61.83209941 | S97: 6294.24784 | T97: 71344.01308
A98: 2004 | B98: 1 | C98: 4 | D98: 24 | E98: 0.02681219669 | F98: 0.02664475011 | G98: 0.001039631577 | H98: 6.350539007e-05 | I98: 2.46840037e-05 | J98: 0.007760568471 | K98: 0.0019822026 | L98: 0.06432753884 | N98: 31731.67926 | O98: 24577.53846 | P98: 593.3041451 | Q98: 50.97676876 | R98: 61.83209941 | S98: 6398.161856 | T98: 63413.49259
A99: 2004 | B99: 1 | C99: 5 | D99: 1 | E99: 0.02513165243 | F99: 0.02755683407 | G99: 0.001039299068 | H99: 6.34850789e-05 | I99: 2.46840037e-05 | J99: 0.008762609669 | K99: 0.0020408685 | L99: 0.06461943282 | N99: 29742.78995 | O99: 25418.85911 | P99: 593.1143865 | Q99: 50.96046467 | R99: 61.83209941 | S99: 7224.289708 | T99: 63091.84572
A100: 2004 | B100: 1 | C100: 5 | D100: 2 | E100: 0.02284483155 | F100: 0.02749469303 | G100: 0.001039299068 | H100: 6.34850789e-05 | I100: 2.46840037e-05 | J100: 0.009204876046 | K100: 0.0020837796 | L100: 0.06275564838 | N100: 27036.38482 | O100: 25361.53924 | P100: 593.1143865 | Q100: 50.96046467 | R100: 61.83209941 | S100: 7588.914011 | T100: 60692.74502
A101: 2004 | B101: 1 | C101: 5 | D101: 3 | E101: 0.02280820169 | F101: 0.02727592511 | G101: 0.001039299068 | H101: 6.34850789e-05 | I101: 2.46840037e-05 | J101: 0.008612382802 | K101: 0.0022309626 | L101: 0.06205494036 | N101: 26993.03414 | O101: 25159.74426 | P101: 593.1143865 | Q101: 50.96046467 | R101: 61.83209941 | S101: 7100.43592 | T101: 59959.12127
A102: 2004 | B102: 1 | C102: 5 | D102: 4 | E102: 0.02243415277 | F102: 0.02721610756 | G102: 0.001039299068 | H102: 6.34850789e-05 | I102: 2.46840037e-05 | J102: 0.008538430329 | K102: 0.0029343315 | L102: 0.06225049031 | N102: 26550.35499 | O102: 25104.5676 | P102: 593.1143865 | Q102: 50.96046467 | R102: 61.83209941 | S102: 7039.466173 | T102: 59400.29571
A103: 2004 | B103: 1 | C103: 5 | D103: 5 | E103: 0.02278070877 | F103: 0.02769984478 | G103: 0.001039299068 | H103: 6.34850789e-05 | I103: 2.46840037e-05 | J103: 0.008148915265 | K103: 0.0034733115 | L103: 0.06323024846 | N103: 26960.49683 | O103: 25550.77446 | P103: 593.1143865 | Q103: 50.96046467 | R103: 61.83209941 | S103: 6718.332427 | T103: 59935.51066
A104: 2004 | B104: 1 | C104: 5 | D104: 6 | E104: 0.02446048926 | F104: 0.0291536837 | G104: 0.001039299068 | H104: 6.34850789e-05 | I104: 2.46840037e-05 | J104: 0.007872320502 | K104: 0.0040688844 | L104: 0.06668284601 | N104: 28948.48224 | O104: 26891.81845 | P104: 593.1143865 | Q104: 50.96046467 | R104: 61.83209941 | S104: 6490.295258 | T104: 63036.50289
A105: 2004 | B105: 1 | C105: 5 | D105: 7 | E105: 0.02806226532 | F105: 0.03193489822 | G105: 0.001039299068 | H105: 6.34850789e-05 | I105: 2.46840037e-05 | J105: 0.008783163999 | K105: 0.0041731563 | L105: 0.07408095199 | N105: 33211.10958 | O105: 29457.25466 | P105: 593.1143865 | Q105: 50.96046467 | R105: 61.83209941 | S105: 7241.235623 | T105: 70615.50681
A106: 2004 | B106: 1 | C106: 5 | D106: 8 | E106: 0.03124018781 | F106: 0.03649058354 | G106: 0.0007794743012 | H106: 4.761380918e-05 | I106: 2.46840037e-05 | J106: 0.01343654999 | K106: 0.0042121287 | L106: 0.08623122216 | N106: 36972.11501 | O106: 33659.49077 | P106: 444.8357899 | Q106: 38.2203485 | R106: 61.83209941 | S106: 11077.69643 | T106: 82254.19045
A107: 2004 | B107: 1 | C107: 5 | D107: 9 | E107: 0.03090475623 | F107: 0.03914094605 | G107: 0 | H107: 0 | I107: 2.46840037e-05 | J107: 0.01430161091 | K107: 0.0043137057 | L107: 0.0886857029 | N107: 36575.13868 | O107: 36104.22703 | P107: 0 | Q107: 0 | R107: 61.83209941 | S107: 11790.89157 | T107: 84532.08938
A108: 2004 | B108: 1 | C108: 5 | D108: 10 | E108: 0.02973931774 | F108: 0.04052665028 | G108: 0 | H108: 0 | I108: 2.46840037e-05 | J108: 0.01557828646 | K108: 0.004313913 | L108: 0.09018285148 | N108: 35195.86638 | O108: 37382.4225 | P108: 0 | Q108: 0 | R108: 61.83209941 | S108: 12843.44034 | T108: 85483.56132
A109: 2004 | B109: 1 | C109: 5 | D109: 11 | E109: 0.03068340657 | F109: 0.04156067057 | G109: 0 | H109: 0 | I109: 2.46840037e-05 | J109: 0.01598232053 | K109: 0.0043047918 | L109: 0.09255587347 | N109: 36313.17594 | O109: 38336.21915 | P109: 0 | Q109: 0 | R109: 61.83209941 | S109: 13176.54421 | T109: 87887.77141
A110: 2004 | B110: 1 | C110: 5 | D110: 12 | E110: 0.0304746876 | F110: 0.04145654697 | G110: 0 | H110: 0 | I110: 2.46840037e-05 | J110: 0.01699288613 | K110: 0.0041712906 | L110: 0.0931200953 | N110: 36066.16137 | O110: 38240.1739 | P110: 0 | Q110: 0 | R110: 61.83209941 | S110: 14009.69997 | T110: 88377.86733
A111: 2004 | B111: 1 | C111: 5 | D111: 13 | E111: 0.03086736891 | F111: 0.04104485833 | G111: 0 | H111: 0 | I111: 2.46840037e-05 | J111: 0.0161958995 | K111: 0.0041949228 | L111: 0.09232773354 | N111: 36530.89156 | O111: 37860.42579 | P111: 0 | Q111: 0 | R111: 61.83209941 | S111: 13352.62833 | T111: 87805.77778
A112: 2004 | B112: 1 | C112: 5 | D112: 14 | E112: 0.03103144684 | F112: 0.04120526594 | G112: 0 | H112: 0 | I112: 2.46840037e-05 | J112: 0.01526113677 | K112: 0.0041961666 | L112: 0.09171870016 | N112: 36725.07439 | O112: 38008.38831 | P112: 0 | Q112: 0 | R112: 61.83209941 | S112: 12581.96787 | T112: 87377.26267
A113: 2004 | B113: 1 | C113: 5 | D113: 15 | E113: 0.03080307039 | F113: 0.04089173608 | G113: 0 | H113: 0 | I113: 2.46840037e-05 | J113: 0.01526638137 | K113: 0.0041685957 | L113: 0.09115446754 | N113: 36454.79559 | O113: 37719.18341 | P113: 0 | Q113: 0 | R113: 61.83209941 | S113: 12586.29175 | T113: 86822.10285
A114: 2004 | B114: 1 | C114: 5 | D114: 16 | E114: 0.03055611084 | F114: 0.03977681214 | G114: 0 | H114: 0 | I114: 2.46840037e-05 | J114: 0.01749611887 | K114: 0.004150146 | L114: 0.09200387186 | N114: 36162.52409 | O114: 36690.75996 | P114: 0 | Q114: 0 | R114: 61.83209941 | S114: 14424.58769 | T114: 87339.70383
A115: 2004 | B115: 1 | C115: 5 | D115: 17 | E115: 0.03623068309 | F115: 0.03967638017 | G115: 0 | H115: 0 | I115: 2.46840037e-05 | J115: 0.01624819158 | K115: 0.0041035035 | L115: 0.09628344235 | N115: 42878.26277 | O115: 36598.11992 | P115: 0 | Q115: 0 | R115: 61.83209941 | S115: 13395.74027 | T115: 92933.95506
A116: 2004 | B116: 1 | C116: 5 | D116: 18 | E116: 0.04346005333 | F116: 0.03943204652 | G116: 0.001039299068 | H116: 6.34850789e-05 | I116: 2.46840037e-05 | J116: 0.01637905161 | K116: 0.0040753107 | L116: 0.1044739303 | N116: 51434.07266 | O116: 36372.7427 | P116: 593.1143865 | Q116: 50.96046467 | R116: 61.83209941 | S116: 13503.62716 | T116: 102016.3495
A117: 2004 | B117: 1 | C117: 5 | D117: 19 | E117: 0.04525091626 | F117: 0.03897553192 | G117: 0.001039299068 | H117: 6.34850789e-05 | I117: 2.46840037e-05 | J117: 0.01625547012 | K117: 0.0041091006 | L117: 0.105718487 | N117: 53553.52184 | O117: 35951.64642 | P117: 593.1143865 | Q117: 50.96046467 | R117: 61.83209941 | S117: 13401.74102 | T117: 103612.8162
A118: 2004 | B118: 1 | C118: 5 | D118: 20 | E118: 0.04181678819 | F118: 0.03833097343 | G118: 0.001039299068 | H118: 6.34850789e-05 | I118: 2.46840037e-05 | J118: 0.01707612272 | K118: 0.0040958334 | L118: 0.1024471859 | N118: 49489.30241 | O118: 35357.09549 | P118: 593.1143865 | Q118: 50.96046467 | R118: 61.83209941 | S118: 14078.32396 | T118: 99630.62881
A119: 2004 | B119: 1 | C119: 5 | D119: 21 | E119: 0.04048999863 | F119: 0.03781243298 | G119: 0.001039299068 | H119: 6.34850789e-05 | I119: 2.46840037e-05 | J119: 0.01670281248 | K119: 0.0040147791 | L119: 0.1001474913 | N119: 47919.07446 | O119: 34878.78559 | P119: 593.1143865 | Q119: 50.96046467 | R119: 61.83209941 | S119: 13770.5502 | T119: 97274.31719
A120: 2004 | B120: 1 | C120: 5 | D120: 22 | E120: 0.03849862503 | F120: 0.03568261053 | G120: 0.001039299068 | H120: 6.34850789e-05 | I120: 2.46840037e-05 | J120: 0.01521882891 | K120: 0.0040367529 | L120: 0.09456428552 | N120: 45562.32507 | O120: 32914.2037 | P120: 593.1143865 | Q120: 50.96046467 | R120: 61.83209941 | S120: 12547.08736 | T120: 91729.52309
A121: 2004 | B121: 1 | C121: 5 | D121: 23 | E121: 0.0339748129 | F121: 0.03362132687 | G121: 0.001039299068 | H121: 6.34850789e-05 | I121: 2.46840037e-05 | J121: 0.01072583009 | K121: 0.0040523004 | L121: 0.08350173841 | N121: 40208.48713 | O121: 31012.84309 | P121: 593.1143865 | Q121: 50.96046467 | R121: 61.83209941 | S121: 8842.856964 | T121: 80770.09414
A122: 2004 | B122: 1 | C122: 5 | D122: 24 | E122: 0.02832733115 | F122: 0.03209262591 | G122: 0.001039631577 | H122: 6.350539007e-05 | I122: 2.46840037e-05 | J122: 0.01068684029 | K122: 0.0039015933 | L122: 0.07613621162 | N122: 33524.8095 | O122: 29602.74517 | P122: 593.3041451 | Q122: 50.97676876 | R122: 61.83209941 | S122: 8810.712015 | T122: 72644.3797
A123: 2004 | B123: 1 | C123: 6 | D123: 1 | E123: 0.02473312887 | F123: 0.03107125232 | G123: 0.001039299068 | H123: 6.34850789e-05 | I123: 2.46840037e-05 | J123: 0.008807157671 | K123: 0.0036963663 | L123: 0.06943537332 | N123: 29271.14557 | O123: 28660.61404 | P123: 593.1143865 | Q123: 50.96046467 | R123: 61.83209941 | S123: 7261.017086 | T123: 65898.68365
A124: 2004 | B124: 1 | C124: 6 | D124: 2 | E124: 0.02280240036 | F124: 0.03045760052 | G124: 0.001039299068 | H124: 6.34850789e-05 | I124: 2.46840037e-05 | J124: 0.008695861393 | K124: 0.0036022521 | L124: 0.06668558252 | N124: 26986.16838 | O124: 28094.57192 | P124: 593.1143865 | Q124: 50.96046467 | R124: 61.83209941 | S124: 7169.259426 | T124: 62955.90667
A125: 2004 | B125: 1 | C125: 6 | D125: 3 | E125: 0.02300432472 | F125: 0.02939039065 | G125: 0.001039299068 | H125: 6.34850789e-05 | I125: 2.46840037e-05 | J125: 0.007822466502 | K125: 0.0035910579 | L125: 0.06493570792 | N125: 27225.14167 | O125: 27110.16068 | P125: 593.1143865 | Q125: 50.96046467 | R125: 61.83209941 | S125: 6449.193378 | T125: 61490.40268
A126: 2004 | B126: 1 | C126: 6 | D126: 4 | E126: 0.02233973256 | F126: 0.02892540805 | G126: 0.001039299068 | H126: 6.34850789e-05 | I126: 2.46840037e-05 | J126: 0.008680403538 | K126: 0.003567633 | L126: 0.06464064529 | N126: 26438.61062 | O126: 26681.25338 | P126: 593.1143865 | Q126: 50.96046467 | R126: 61.83209941 | S126: 7156.515275 | T126: 60982.28622
A127: 2004 | B127: 1 | C127: 6 | D127: 5 | E127: 0.02389107916 | F127: 0.02921997411 | G127: 0.001039299068 | H127: 6.34850789e-05 | I127: 2.46840037e-05 | J127: 0.007544127849 | K127: 0.0035628651 | L127: 0.06534551437 | N127: 28274.59718 | O127: 26952.96577 | P127: 593.1143865 | Q127: 50.96046467 | R127: 61.83209941 | S127: 6219.718467 | T127: 62153.18837
A128: 2004 | B128: 1 | C128: 6 | D128: 6 | E128: 0.02463251565 | F128: 0.03107836708 | G128: 0.001039299068 | H128: 6.34850789e-05 | I128: 2.46840037e-05 | J128: 0.007857446234 | K128: 0.0035941674 | L128: 0.06828996452 | N128: 29152.07191 | O128: 28667.17681 | P128: 593.1143865 | Q128: 50.96046467 | R128: 61.83209941 | S128: 6478.032243 | T128: 65003.18791
A129: 2004 | B129: 1 | C129: 6 | D129: 7 | E129: 0.0277697987 | F129: 0.0332066547 | G129: 0.001039299068 | H129: 6.34850789e-05 | I129: 2.46840037e-05 | J129: 0.01105556508 | K129: 0.003808101 | L129: 0.07696758764 | N129: 32864.9814 | O129: 30630.34293 | P129: 593.1143865 | Q129: 50.96046467 | R129: 61.83209941 | S129: 9114.70533 | T129: 73315.93661
A130: 2004 | B130: 1 | C130: 6 | D130: 8 | E130: 0.03243877614 | F130: 0.03714024469 | G130: 0.0007794743012 | H130: 4.761380918e-05 | I130: 2.46840037e-05 | J130: 0.01203756166 | K130: 0.0042034221 | L130: 0.08667177671 | N130: 38390.61946 | O130: 34258.74849 | P130: 444.8357899 | Q130: 38.2203485 | R130: 61.83209941 | S130: 9924.307498 | T130: 83118.56368
A131: 2004 | B131: 1 | C131: 6 | D131: 9 | E131: 0.03078888505 | F131: 0.03948447489 | G131: 0 | H131: 0 | I131: 2.46840037e-05 | J131: 0.01393283098 | K131: 0.0044387076 | L131: 0.08866958252 | N131: 36438.00754 | O131: 36421.10346 | P131: 0 | Q131: 0 | R131: 61.83209941 | S131: 11486.85281 | T131: 84407.7959
A132: 2004 | B132: 1 | C132: 6 | D132: 10 | E132: 0.02854202543 | F132: 0.04086474436 | G132: 0 | H132: 0 | I132: 2.46840037e-05 | J132: 0.01611956232 | K132: 0.0044422317 | L132: 0.08999324782 | N132: =E132/$E$8787*$N$1 -> 33778.89573 | O132: =F132/$F$8787*$O$1 -> 37694.28582 | P132: =G132/$G$8787*$P$1 -> 0 | Q132: =H132/$H$8787*$Q$1 -> 0 | R132: =I132/$I$8787*$R$1 -> 61.83209941 | S132: =J132/$J$8787*$S$1 -> 13289.69252 | T132: =SUM(N132:S132) -> 84824.70618
A133: 2004 | B133: 1 | C133: 6 | D133: 11 | E133: 0.02733958099 | F133: 0.0420476179 | G133: 0 | H133: 0 | I133: 2.46840037e-05 | J133: 0.01824450406 | K133: 0.0043899921 | L133: 0.09204637906 | N133: 32355.82765 | O133: 38785.38707 | P133: 0 | Q133: 0 | R133: 61.83209941 | S133: 15041.59011 | T133: 86244.63693
A134: 2004 | B134: 1 | C134: 6 | D134: 12 | E134: 0.02839126598 | F134: 0.04183347875 | G134: 0 | H134: 0 | I134: 2.46840037e-05 | J134: 0.01767964375 | K134: 0.0044472069 | L134: 0.09237627939 | N134: 33600.47505 | O134: 38587.86173 | P134: 0 | Q134: 0 | R134: 61.83209941 | S134: 14575.89385 | T134: 86826.06273
A135: 2004 | B135: 1 | C135: 6 | D135: 13 | E135: 0.02895950775 | F135: 0.0415179333 | G135: 0 | H135: 0 | I135: 2.46840037e-05 | J135: 0.01641554412 | K135: 0.0043767249 | L135: 0.09129439408 | N135: 34272.9774 | O135: 38296.79762 | P135: 0 | Q135: 0 | R135: 61.83209941 | S135: 13533.71324 | T135: 86165.32036
A136: 2004 | B136: 1 | C136: 6 | D136: 14 | E136: 0.02758051236 | F136: 0.04182779006 | G136: 0 | H136: 0 | I136: 2.46840037e-05 | J136: 0.01724572594 | K136: 0.0043267656 | L136: 0.09100547796 | N136: 32640.96493 | O136: 38582.61439 | P136: 0 | Q136: 0 | R136: 61.83209941 | S136: 14218.15249 | T136: 85503.56391
A137: 2004 | B137: 1 | C137: 6 | D137: 15 | E137: 0.02637258207 | F137: 0.04143736129 | G137: 0 | H137: 0 | I137: 2.46840037e-05 | J137: 0.01833504959 | K137: 0.004438293 | L137: 0.09060796995 | N137: 31211.40446 | O137: 38222.47672 | P137: 0 | Q137: 0 | R137: 61.83209941 | S137: 15116.23992 | T137: 84611.95321
A138: 2004 | B138: 1 | C138: 6 | D138: 16 | E138: 0.02852810707 | F138: 0.04037126975 | G138: 0 | H138: 0 | I138: 2.46840037e-05 | J138: 0.01840962608 | K138: 0.0042639537 | L138: 0.09159764061 | N138: 33762.42364 | O138: 37239.09705 | P138: 0 | Q138: 0 | R138: 61.83209941 | S138: 15177.72413 | T138: 86241.07692
A139: 2004 | B139: 1 | C139: 6 | D139: 17 | E139: 0.03280949074 | F139: 0.04007183861 | G139: 0 | H139: 0 | I139: 2.46840037e-05 | J139: 0.01822710177 | K139: 0.0042183477 | L139: 0.09535146282 | N139: 38829.35251 | O139: 36962.89703 | P139: 0 | Q139: 0 | R139: 61.83209941 | S139: 15027.24287 | T139: 90881.32451
A140: 2004 | B140: 1 | C140: 6 | D140: 18 | E140: 0.03964028272 | F140: 0.03968006668 | G140: 0.001039299068 | H140: 6.34850789e-05 | I140: 2.46840037e-05 | J140: 0.01720733525 | K140: 0.0042552471 | L140: 0.1019103999 | N140: 46913.45328 | O140: 36601.52042 | P140: 593.1143865 | Q140: 50.96046467 | R140: 61.83209941 | S140: 14186.50147 | T140: 98407.38213
A141: 2004 | B141: 1 | C141: 6 | D141: 19 | E141: 0.04204671857 | F141: 0.03954308449 | G141: 0.001039299068 | H141: 6.34850789e-05 | I141: 2.46840037e-05 | J141: 0.01802350655 | K141: 0.0042554544 | L141: 0.1049962322 | N141: 49761.42026 | O141: 36475.16588 | P141: 593.1143865 | Q141: 50.96046467 | R141: 61.83209941 | S141: 14859.38981 | T141: 101801.8829
A142: 2004 | B142: 1 | C142: 6 | D142: 20 | E142: 0.04114628731 | F142: 0.03876583482 | G142: 0.001039299068 | H142: 6.34850789e-05 | I142: 2.46840037e-05 | J142: 0.01842982058 | K142: 0.0042502719 | L142: 0.1037196828 | N142: 48695.77852 | O142: 35758.2185 | P142: 593.1143865 | Q142: 50.96046467 | R142: 61.83209941 | S142: 15194.37339 | T142: 100354.2774
A143: 2004 | B143: 1 | C143: 6 | D143: 21 | E143: 0.04026688694 | F143: 0.03824238524 | G143: 0.001039299068 | H143: 6.34850789e-05 | I143: 2.46840037e-05 | J143: 0.015474123 | K143: 0.0042382485 | L143: 0.09934911183 | N143: 47655.0264 | O143: 35275.38034 | P143: 593.1143865 | Q143: 50.96046467 | R143: 61.83209941 | S143: 12757.5633 | T143: 96393.87699
A144: 2004 | B144: 1 | C144: 6 | D144: 22 | E144: 0.0387263459 | F144: 0.0363731956 | G144: 0.001039299068 | H144: 6.34850789e-05 | I144: 2.46840037e-05 | J144: 0.0133447699 | K144: 0.0042162747 | L144: 0.09378805425 | N144: 45831.828 | O144: 33551.21028 | P144: 593.1143865 | Q144: 50.96046467 | R144: 61.83209941 | S144: 11002.02879 | T144: 91090.97402
A145: 2004 | B145: 1 | C145: 6 | D145: 23 | E145: 0.03543647589 | F145: 0.03391392136 | G145: 0.001039299068 | H145: 6.34850789e-05 | I145: 2.46840037e-05 | J145: 0.009595925016 | K145: 0.0041391591 | L145: 0.08421294952 | N145: 41938.335 | O145: 31282.73687 | P145: 593.1143865 | Q145: 50.96046467 | R145: 61.83209941 | S145: 7911.312378 | T145: 81838.2912
A146: 2004 | B146: 1 | C146: 6 | D146: 24 | E146: 0.03036249948 | F146: 0.03237681676 | G146: 0.001039631577 | H146: 6.350539007e-05 | I146: 2.46840037e-05 | J146: 0.00724914905 | K146: 0.004013328 | L146: 0.07512961427 | N146: 35933.38906 | O146: 29864.88731 | P146: 593.3041451 | Q146: 50.97676876 | R146: 61.83209941 | S146: 5976.524672 | T146: 72480.91405
A147: 2004 | B147: 1 | C147: 7 | D147: 1 | E147: 0.02528923412 | F147: 0.03108980055 | G147: 0.001039299068 | H147: 6.34850789e-05 | I147: 2.46840037e-05 | J147: 0.008384876705 | K147: 0.0037890294 | L147: 0.06968040892 | N147: 29929.28461 | O147: 28677.72322 | P147: 593.1143865 | Q147: 50.96046467 | R147: 61.83209941 | S147: 6912.869656 | T147: 66225.78443
A148: 2004 | B148: 1 | C148: 7 | D148: 2 | E148: 0.0233291753 | F148: 0.03046539397 | G148: 0.001039299068 | H148: 6.34850789e-05 | I148: 2.46840037e-05 | J148: 0.008373820079 | K148: 0.0036250551 | L148: 0.0669209126 | N148: 27609.59561 | O148: 28101.76072 | P148: 593.1143865 | Q148: 50.96046467 | R148: 61.83209941 | S148: 6903.754076 | T148: 63321.01736
A149: 2004 | B149: 1 | C149: 7 | D149: 3 | E149: 0.02358022713 | F149: 0.03001021338 | G149: 0.001039299068 | H149: 6.34850789e-05 | I149: 2.46840037e-05 | J149: 0.006880360706 | K149: 0.0035665965 | L149: 0.06516486587 | N149: 27906.71025 | O149: 27681.89496 | P149: 593.1143865 | Q149: 50.96046467 | R149: 61.83209941 | S149: 5672.478967 | T149: 61966.99112
A150: 2004 | B150: 1 | C150: 7 | D150: 4 | E150: 0.02288282146 | F150: 0.0297297491 | G150: 0.001039299068 | H150: 6.34850789e-05 | I150: 2.46840037e-05 | J150: 0.007606698606 | K150: 0.003522027 | L150: 0.06486876432 | N150: 27081.34508 | O150: 27423.19028 | P150: 593.1143865 | Q150: 50.96046467 | R150: 61.83209941 | S150: 6271.304615 | T150: 61481.74692
A151: 2004 | B151: 1 | C151: 7 | D151: 5 | E151: 0.02448323821 | F151: 0.02982832346 | G151: 0.001039299068 | H151: 6.34850789e-05 | I151: 2.46840037e-05 | J151: 0.006707102132 | K151: 0.0034299858 | L151: 0.06557611775 | N151: 28975.40515 | O151: 27514.11682 | P151: 593.1143865 | Q151: 50.96046467 | R151: 61.83209941 | S151: 5529.636802 | T151: 62725.06572
A152: 2004 | B152: 1 | C152: 7 | D152: 6 | E152: 0.02521821004 | F152: 0.0314539265 | G152: 0.001039299068 | H152: 6.34850789e-05 | I152: 2.46840037e-05 | J152: 0.007314427146 | K152: 0.0034169259 | L152: 0.06853095773 | N152: 29845.22908 | O152: 29013.59874 | P152: 593.1143865 | Q152: 50.96046467 | R152: 61.83209941 | S152: 6030.342872 | T152: 65595.07765
A153: 2004 | B153: 1 | C153: 7 | D153: 7 | E153: 0.02839169052 | F153: 0.03334721241 | G153: 0.001039299068 | H153: 6.34850789e-05 | I153: 2.46840037e-05 | J153: 0.01099985688 | K153: 0.0033729783 | L153: 0.07723920625 | N153: 33600.97748 | O153: 30759.99558 | P153: 593.1143865 | Q153: 50.96046467 | R153: 61.83209941 | S153: 9068.776977 | T153: 74135.65699
A154: 2004 | B154: 1 | C154: 7 | D154: 8 | E154: 0.03311623181 | F154: 0.03734602926 | G154: 0.0007794743012 | H154: 4.761380918e-05 | I154: 2.46840037e-05 | J154: 0.01214428053 | K154: 0.0035193321 | L154: 0.08697764581 | N154: 39192.3742 | O154: 34448.56742 | P154: 444.8357899 | Q154: 38.2203485 | R154: 61.83209941 | S154: 10012.29133 | T154: 84198.1212
A155: 2004 | B155: 1 | C155: 7 | D155: 9 | E155: 0.03143642225 | F155: 0.0401425491 | G155: 0 | H155: 0 | I155: 2.46840037e-05 | J155: 0.0137809447 | K155: 0.0035978988 | L155: 0.08898249885 | N155: 37204.3544 | O155: 37028.1215 | P155: 0 | Q155: 0 | R155: 61.83209941 | S155: 11361.63092 | T155: 85655.93893
A156: 2004 | B156: 1 | C156: 7 | D156: 10 | E156: 0.02917012374 | F156: 0.0415458956 | G156: 0 | H156: 0 | I156: 2.46840037e-05 | J156: 0.01596850067 | K156: 0.0036016302 | L156: 0.09031083421 | N156: 34522.23707 | O156: 38322.59048 | P156: 0 | Q156: 0 | R156: 61.83209941 | S156: 13165.1505 | T156: 86071.81015
A157: 2004 | B157: 1 | C157: 7 | D157: 11 | E157: 0.02794019832 | F157: 0.04275706379 | G157: 0 | H157: 0 | I157: 2.46840037e-05 | J157: 0.01803748361 | K157: 0.0036117879 | L157: 0.09237121763 | N157: 33066.64582 | O157: 39439.79116 | P157: 0 | Q157: 0 | R157: 61.83209941 | S157: 14870.91314 | T157: 87439.18222
A158: 2004 | B158: 1 | C158: 7 | D158: 12 | E158: 0.02895489758 | F158: 0.04246214306 | G158: 0 | H158: 0 | I158: 2.46840037e-05 | J158: 0.0175660449 | K158: 0.0036945006 | L158: 0.09270227014 | N158: 34267.52137 | O158: 39167.75162 | P158: 0 | Q158: 0 | R158: 61.83209941 | S158: 14482.23784 | T158: 87979.34293
A159: 2004 | B159: 1 | C159: 7 | D159: 13 | E159: 0.02952983466 | F159: 0.04204478694 | G159: 0 | H159: 0 | I159: 2.46840037e-05 | J159: 0.01647803045 | K159: 0.0035392329 | L159: 0.09161656895 | N159: 34947.94748 | O159: 38782.77574 | P159: 0 | Q159: 0 | R159: 61.83209941 | S159: 13585.22978 | T159: 87377.78511
A160: 2004 | B160: 1 | C160: 7 | D160: 14 | E160: 0.0280947721 | F160: 0.04222278518 | G160: 0 | H160: 0 | I160: 2.46840037e-05 | J160: 0.01742111316 | K160: 0.0035632797 | L160: 0.09132663415 | N160: 33249.58068 | O160: 38946.96414 | P160: 0 | Q160: 0 | R160: 61.83209941 | S160: 14362.7496 | T160: 86621.12652
A161: 2004 | B161: 1 | C161: 7 | D161: 15 | E161: 0.02687340997 | F161: 0.04166610149 | G161: 0 | H161: 0 | I161: 2.46840037e-05 | J161: 0.01906870555 | K161: 0.0032948262 | L161: 0.09092772721 | N161: 31804.12391 | O161: 38433.4703 | P161: 0 | Q161: 0 | R161: 61.83209941 | S161: 15721.0989 | T161: 86020.52521
A162: 2004 | B162: 1 | C162: 7 | D162: 16 | E162: 0.02906156279 | F162: 0.04061653301 | G162: 0 | H162: 0 | I162: 2.46840037e-05 | J162: 0.01925289653 | K162: 0.0029652192 | L162: 0.09192089553 | N162: 34393.75743 | O162: 37465.33175 | P162: 0 | Q162: 0 | R162: 61.83209941 | S162: 15872.95423 | T162: 87793.87551
A163: 2004 | B163: 1 | C163: 7 | D163: 17 | E163: 0.0333893217 | F163: 0.04037132041 | G163: 0 | H163: 0 | I163: 2.46840037e-05 | J163: 0.01921166991 | K163: 0.0026909613 | L163: 0.09568795733 | N163: 39515.57044 | O163: 37239.14378 | P163: 0 | Q163: 0 | R163: 61.83209941 | S163: 15838.96516 | T163: 92655.51147
A164: 2004 | B164: 1 | C164: 7 | D164: 18 | E164: 0.04025648292 | F164: 0.03958453431 | G164: 0.001039299068 | H164: 6.34850789e-05 | I164: 2.46840037e-05 | J164: 0.01882266165 | K164: 0.0024788934 | L164: 0.1022700404 | N164: 47642.71346 | O164: 36513.39985 | P164: 593.1143865 | Q164: 50.96046467 | R164: 61.83209941 | S164: 15518.24924 | T164: 100380.2695
A165: 2004 | B165: 1 | C165: 7 | D165: 19 | E165: 0.04268205677 | F165: 0.03970757633 | G165: 0.001039299068 | H165: 6.34850789e-05 | I165: 2.46840037e-05 | J165: 0.01976671583 | K165: 0.0020829504 | L165: 0.1053667675 | N165: 50513.32985 | O165: 36626.89575 | P165: 593.1143865 | Q165: 50.96046467 | R165: 61.83209941 | S165: 16296.56999 | T165: 104142.7025
A166: 2004 | B166: 1 | C166: 7 | D166: 20 | E166: 0.04179915781 | F166: 0.03908748342 | G166: 0.001039299068 | H166: 6.34850789e-05 | I166: 2.46840037e-05 | J166: 0.01998678637 | K166: 0.0020848161 | L166: 0.1040857119 | N166: 49468.43723 | O166: 36054.91226 | P166: 593.1143865 | Q166: 50.96046467 | R166: 61.83209941 | S166: 16478.00604 | T166: 102707.2625
A167: 2004 | B167: 1 | C167: 7 | D167: 21 | E167: 0.04093199998 | F167: 0.03848518255 | G167: 0.001039299068 | H167: 6.34850789e-05 | I167: 2.46840037e-05 | J167: 0.01713783337 | K167: 0.0020172363 | L167: 0.09969972035 | N167: 48442.1739 | O167: 35499.34042 | P167: 593.1143865 | Q167: 50.96046467 | R167: 61.83209941 | S167: 14129.20099 | T167: 98776.62226
A168: 2004 | B168: 1 | C168: 7 | D168: 22 | E168: 0.03942533489 | F168: 0.0365278557 | G168: 0.001039299068 | H168: 6.34850789e-05 | I168: 2.46840037e-05 | J168: 0.01539987667 | K168: 0.0016384992 | L168: 0.09411903462 | N168: 46659.06699 | O168: 33693.87121 | P168: 593.1143865 | Q168: 50.96046467 | R168: 61.83209941 | S168: 12696.35129 | T168: 93755.19643
A169: 2004 | B169: 1 | C169: 7 | D169: 23 | E169: 0.03607840855 | F169: 0.03405086738 | G169: 0.001039299068 | H169: 6.34850789e-05 | I169: 2.46840037e-05 | J169: 0.01169761064 | K169: 0.0015557865 | L169: 0.08451014122 | N169: 42698.04901 | O169: 31409.05804 | P169: 593.1143865 | Q169: 50.96046467 | R169: 61.83209941 | S169: 9644.036577 | T169: 84457.05058
A170: 2004 | B170: 1 | C170: 7 | D170: 24 | E170: 0.03096996878 | F170: 0.03274079784 | G170: 0.001039631577 | H170: 6.350539007e-05 | I170: 2.46840037e-05 | J170: 0.008999542608 | K170: 0.0015566157 | L170: 0.0753947459 | N170: 36652.31639 | O170: 30200.6292 | P170: 593.3041451 | Q170: 50.97676876 | R170: 61.83209941 | S170: 7419.627885 | T170: 74978.68649
A171: 2004 | B171: 1 | C171: 8 | D171: 1 | E171: 0.02478976895 | F171: 0.03123008 | G171: 0.001039299068 | H171: 6.34850789e-05 | I171: 2.46840037e-05 | J171: 0.0107557701 | K171: 0.0015572376 | L171: 0.0694603248 | N171: 29338.17793 | O171: 28807.1192 | P171: 593.1143865 | Q171: 50.96046467 | R171: 61.83209941 | S171: 8867.540855 | T171: 67718.74494
A172: 2004 | B172: 1 | C172: 8 | D172: 2 | E172: 0.02285605318 | F172: 0.03079300311 | G172: 0.001039299068 | H172: 6.34850789e-05 | I172: 2.46840037e-05 | J172: 0.01021263919 | K172: 0.0017203827 | L172: 0.06670954633 | N172: 27049.66539 | O172: 28403.95257 | P172: 593.1143865 | Q172: 50.96046467 | R172: 61.83209941 | S172: 8419.759292 | T172: 64579.28419
A173: 2004 | B173: 1 | C173: 8 | D173: 3 | E173: 0.02306298161 | F173: 0.03015641437 | G173: 0.001039299068 | H173: 6.34850789e-05 | I173: 2.46840037e-05 | J173: 0.008854483912 | K173: 0.0017576967 | L173: 0.06495904475 | N173: 27294.56089 | O173: 27816.75306 | P173: 593.1143865 | Q173: 50.96046467 | R173: 61.83209941 | S173: 7300.034968 | T173: 63117.25587
A174: 2004 | B174: 1 | C174: 8 | D174: 4 | E174: 0.02239504693 | F174: 0.02989125373 | G174: 0.001039299068 | H174: 6.34850789e-05 | I174: 2.46840037e-05 | J174: 0.009540299754 | K174: 0.0017098104 | L174: 0.06466387896 | N174: 26504.07403 | O174: 27572.1647 | P174: 593.1143865 | Q174: 50.96046467 | R174: 61.83209941 | S174: 7865.452409 | T174: 62647.59809
A175: 2004 | B175: 1 | C175: 8 | D175: 5 | E175: 0.02395139175 | F175: 0.02974309723 | G175: 0.001039299068 | H175: 6.34850789e-05 | I175: 2.46840037e-05 | J175: 0.008828727952 | K175: 0.0017183097 | L175: 0.06536899479 | N175: 28345.97589 | O175: 27435.5028 | P175: 593.1143865 | Q175: 50.96046467 | R175: 61.83209941 | S175: 7278.800596 | T175: 63766.18624
A176: 2004 | B176: 1 | C176: 8 | D176: 6 | E176: 0.02469216969 | F176: 0.03108965161 | G176: 0.001039299068 | H176: 6.34850789e-05 | I176: 2.46840037e-05 | J176: 0.009681723102 | K176: 0.0017234922 | L176: 0.06831450476 | N176: 29222.67123 | O176: 28677.58584 | P176: 593.1143865 | Q176: 50.96046467 | R176: 61.83209941 | S176: 7982.048181 | T176: 66588.2122
A177: 2004 | B177: 1 | C177: 8 | D177: 7 | E177: 0.02783313985 | F177: 0.03305640793 | G177: 0.001039299068 | H177: 6.34850789e-05 | I177: 2.46840037e-05 | J177: 0.01323691409 | K177: 0.00174132 | L177: 0.07699525001 | N177: 32939.94433 | O177: 30491.75293 | P177: 593.1143865 | Q177: 50.96046467 | R177: 61.83209941 | S177: 10913.10761 | T177: 75050.71182
A178: 2004 | B178: 1 | C178: 8 | D178: 8 | E178: 0.0325077762 | F178: 0.03709844163 | G178: 0.0007794743012 | H178: 4.761380918e-05 | I178: 2.46840037e-05 | J178: 0.01421443252 | K178: 0.0020305035 | L178: 0.08670292595 | N178: 38472.2796 | O178: 34220.18868 | P178: 444.8357899 | Q178: 38.2203485 | R178: 61.83209941 | S178: 11719.01778 | T178: 84956.3743
A179: 2004 | B179: 1 | C179: 8 | D179: 9 | E179: 0.03085483773 | F179: 0.03954266396 | G179: 0 | H179: 0 | I179: 2.46840037e-05 | J179: 0.01600580767 | K179: 0.0022734591 | L179: 0.08870145247 | N179: 36516.06117 | O179: 36474.77797 | P179: 0 | Q179: 0 | R179: 61.83209941 | S179: 13195.90807 | T179: 86248.57932
A180: 2004 | B180: 1 | C180: 8 | D180: 10 | E180: 0.02860599823 | F180: 0.04107820569 | G180: 0 | H180: 0 | I180: 2.46840037e-05 | J180: 0.01803785422 | K180: 0.0022788489 | L180: 0.09002559104 | N180: 33854.60621 | O180: 37891.18593 | P180: 0 | Q180: 0 | R180: 61.83209941 | S180: 14871.21868 | T180: 86678.84292
A181: 2004 | B181: 1 | C181: 8 | D181: 11 | E181: 0.02740075442 | F181: 0.04228464729 | G181: 0 | H181: 0 | I181: 2.46840037e-05 | J181: 0.02020371372 | K181: 0.0021656631 | L181: 0.09207946253 | N181: 32428.22513 | O181: 39004.02672 | P181: 0 | Q181: 0 | R181: 61.83209941 | S181: 16656.85071 | T181: 88150.93467
A182: 2004 | B182: 1 | C182: 8 | D182: 12 | E182: 0.0284486726 | F182: 0.0421195728 | G182: 0 | H182: 0 | I182: 2.46840037e-05 | J182: 0.01956547602 | K182: 0.0022510707 | L182: 0.09240947613 | N182: 33668.41459 | O182: 38851.75941 | P182: 0 | Q182: 0 | R182: 61.83209941 | S182: 16130.65883 | T182: 88712.66493
A183: 2004 | B183: 1 | C183: 8 | D183: 13 | E183: 0.02901759682 | F183: 0.04152639731 | G183: 0 | H183: 0 | I183: 2.46840037e-05 | J183: 0.01860218772 | K183: 0.0021563346 | L183: 0.09132720046 | N183: 34341.72462 | O183: 38304.60496 | P183: 0 | Q183: 0 | R183: 61.83209941 | S183: 15336.48062 | T183: 88044.6423
A184: 2004 | B184: 1 | C184: 8 | D184: 14 | E184: 0.02763289024 | F184: 0.04174452203 | G184: 0 | H184: 0 | I184: 2.46840037e-05 | J184: 0.01942232822 | K184: 0.0022137567 | L184: 0.0910381812 | N184: 32702.95307 | O184: 38505.80665 | P184: 0 | Q184: 0 | R184: 61.83209941 | S184: 16012.64135 | T184: 87283.23317
A185: 2004 | B185: 1 | C185: 8 | D185: 15 | E185: 0.02642359223 | F185: 0.04141165241 | G185: 0 | H185: 0 | I185: 2.46840037e-05 | J185: 0.02056331947 | K185: 0.0022172808 | L185: 0.09064052892 | N185: 31271.77393 | O185: 38198.76245 | P185: 0 | Q185: 0 | R185: 61.83209941 | S185: 16953.32588 | T185: 86485.69435
A186: 2004 | B186: 1 | C186: 8 | D186: 16 | E186: 0.02858244093 | F186: 0.0406233002 | G186: 0 | H186: 0 | I186: 2.46840037e-05 | J186: 0.02034579145 | K186: 0.002054343 | L186: 0.09163055958 | N186: 33826.72664 | O186: 37471.57392 | P186: 0 | Q186: 0 | R186: 61.83209941 | S186: 16773.98598 | T186: 88134.11864
A187: 2004 | B187: 1 | C187: 8 | D187: 17 | E187: 0.03286854725 | F187: 0.04048675244 | G187: 0 | H187: 0 | I187: 2.46840037e-05 | J187: 0.01982453519 | K187: 0.0021812106 | L187: 0.09538572948 | N187: 38899.24467 | O187: 37345.62011 | P187: 0 | Q187: 0 | R187: 61.83209941 | S187: 16344.23887 | T187: 92650.93574
A188: 2004 | B188: 1 | C188: 8 | D188: 18 | E188: 0.03970304364 | F188: 0.04001057171 | G188: 0.001039299068 | H188: 6.34850789e-05 | I188: 2.46840037e-05 | J188: 0.01911565137 | K188: 0.0019902873 | L188: 0.1019470222 | N188: 46987.72953 | O188: 36906.38347 | P188: 593.1143865 | Q188: 50.96046467 | R188: 61.83209941 | S188: 15759.80315 | T188: 100359.8231
A189: 2004 | B189: 1 | C189: 8 | D189: 19 | E189: 0.04211142891 | F189: 0.03968363666 | G189: 0.001039299068 | H189: 6.34850789e-05 | I189: 2.46840037e-05 | J189: 0.02011596195 | K189: 0.0019954698 | L189: 0.1050339655 | N189: 49838.0036 | O189: 36604.81342 | P189: 593.1143865 | Q189: 50.96046467 | R189: 61.83209941 | S189: 16584.50421 | T189: 103733.2282
A190: 2004 | B190: 1 | C190: 8 | D190: 20 | E190: 0.04121278315 | F190: 0.03899886164 | G190: 0.001039299068 | H190: 6.34850789e-05 | I190: 2.46840037e-05 | J190: 0.02035749606 | K190: 0.0020603547 | L190: 0.1037569637 | N190: 48774.47497 | O190: 35973.16613 | P190: 593.1143865 | Q190: 50.96046467 | R190: 61.83209941 | S190: 16783.63579 | T190: 102237.1838
A191: 2004 | B191: 1 | C191: 8 | D191: 21 | E191: 0.04033462945 | F191: 0.0381857981 | G191: 0.001039299068 | H191: 6.34850789e-05 | I191: 2.46840037e-05 | J191: 0.01767822656 | K191: 0.0020586963 | L191: 0.09938481855 | N191: 47735.19825 | O191: 35223.18346 | P191: 593.1143865 | Q191: 50.96046467 | R191: 61.83209941 | S191: 14574.72545 | T191: 98239.01412
A192: 2004 | B192: 1 | C192: 8 | D192: 22 | E192: 0.03879753977 | F192: 0.0361986029 | G192: 0.001039299068 | H192: 6.34850789e-05 | I192: 2.46840037e-05 | J192: 0.01564381156 | K192: 0.002054343 | L192: 0.09382176539 | N192: 45916.08447 | O192: 33390.16322 | P192: 593.1143865 | Q192: 50.96046467 | R192: 61.83209941 | S192: 12897.46219 | T192: 92909.61683
A193: 2004 | B193: 1 | C193: 8 | D193: 23 | E193: 0.03550185776 | F193: 0.03388021725 | G193: 0.001039299068 | H193: 6.34850789e-05 | I193: 2.46840037e-05 | J193: 0.01168140107 | K193: 0.00205227 | L193: 0.08424321423 | N193: 42015.71309 | O193: 31251.64767 | P193: 593.1143865 | Q193: 50.96046467 | R193: 61.83209941 | S193: 9630.67268 | T193: 83603.94039
A194: 2004 | B194: 1 | C194: 8 | D194: 24 | E194: 0.03042437134 | F194: 0.03277784732 | G194: 0.001039631577 | H194: 6.350539007e-05 | I194: 2.46840037e-05 | J194: 0.008784466033 | K194: 0.0020421123 | L194: 0.07515661797 | N194: 36006.61311 | O194: 30234.80423 | P194: 593.3041451 | Q194: 50.97676876 | R194: 61.83209941 | S194: 7242.309079 | T194: 74189.83944
A195: 2004 | B195: 1 | C195: 9 | D195: 1 | E195: 0.02485900138 | F195: 0.03082072634 | G195: 0.001039299068 | H195: 6.34850789e-05 | I195: 2.46840037e-05 | J195: 0.01047051677 | K195: 0.0020307108 | L195: 0.06930842344 | N195: 29420.11307 | O195: 28429.52492 | P195: 593.1143865 | Q195: 50.96046467 | R195: 61.83209941 | S195: 8632.365171 | T195: 67187.91011
A196: 2004 | B196: 1 | C196: 9 | D196: 2 | E196: 0.02245941154 | F196: 0.03050826474 | G196: 0.001039299068 | H196: 6.34850789e-05 | I196: 2.46840037e-05 | J196: 0.01007431788 | K196: 0.0019960917 | L196: 0.06616555401 | N196: =E196/$E$8787*$N$1 -> 26580.24822 | O196: =F196/$F$8787*$O$1 -> 28141.30539 | P196: =G196/$G$8787*$P$1 -> 593.1143865 | Q196: =H196/$H$8787*$Q$1 -> 50.96046467 | R196: =I196/$I$8787*$R$1 -> 61.83209941 | S196: =J196/$J$8787*$S$1 -> 8305.720981 | T196: =SUM(N196:S196) -> 63733.18155
A197: 2004 | B197: 1 | C197: 9 | D197: 3 | E197: 0.02247903627 | F197: 0.02986688055 | G197: 0.001039299068 | H197: 6.34850789e-05 | I197: 2.46840037e-05 | J197: 0.009095976885 | K197: 0.0019169031 | L197: 0.06448626496 | N197: 26603.47368 | O197: 27549.68249 | P197: 593.1143865 | Q197: 50.96046467 | R197: 61.83209941 | S197: 7499.132643 | T197: 62358.19576
A198: 2004 | B198: 1 | C198: 9 | D198: 4 | E198: 0.02304702567 | F198: 0.02970561038 | G198: 0.001039299068 | H198: 6.34850789e-05 | I198: 2.46840037e-05 | J198: 0.007991719728 | K198: 0.0019249878 | L198: 0.06379681173 | N198: 27275.67737 | O198: 27400.92433 | P198: 593.1143865 | Q198: 50.96046467 | R198: 61.83209941 | S198: 6588.733353 | T198: 61971.24201
A199: 2004 | B199: 1 | C199: 9 | D199: 5 | E199: 0.02257222033 | F199: 0.02954807145 | G199: 0.001039299068 | H199: 6.34850789e-05 | I199: 2.46840037e-05 | J199: 0.009042754517 | K199: 0.0018308736 | L199: 0.06412138805 | N199: 26713.75509 | O199: 27255.60793 | P199: 593.1143865 | Q199: 50.96046467 | R199: 61.83209941 | S199: 7455.253727 | T199: 62130.5237
A200: 2004 | B200: 1 | C200: 9 | D200: 6 | E200: 0.02454680365 | F200: 0.03098461392 | G200: 0.001039299068 | H200: 6.34850789e-05 | I200: 2.46840037e-05 | J200: 0.008885822976 | K200: 0.0018142896 | L200: 0.06735899829 | N200: 29050.63353 | O200: 28580.69741 | P200: 593.1143865 | Q200: 50.96046467 | R200: 61.83209941 | S200: 7325.872304 | T200: 65663.11019
... 4296 more rows

Sheet Input to CA model
A2: Feed into OEB Cost Allocation Model (version 50) sheet "I6 Customer Data", row 27
D3: 1 | E3: 2 | F3: 3 | G3: 4 | H3: 5 | I3: 6 | J3: 8 | K3: 9 | L3: 10 | M3: 11 | N3: 12 | O3: 13 | P3: 14 | Q3: 15 | R3: 16 | S3: 17 | T3: 18 | U3: 19 | V3: 20
B4: ID | C4: Total | D4: Residential | E4: GS>50kW | F4: Street Lighting | G4: Sentinel Lighting | H4: USL | I4: GS<50
A6: kWh - 30 year weather normalized amount | C6: =SUM(D6:I6) -> 655906325 | D6: ='Hourly load shapes by class'!N8787 -> 282139763.4 | E6: ='Hourly load shapes by class'!O8787 -> 278825252.3 | F6: ='Hourly load shapes by class'!P8787 -> 2565174.351 | G6: ='Hourly load shapes by class'!Q8787 -> 275116.0358 | H6: ='Hourly load shapes by class'!R8787 -> 552036.9835 | I6: ='Hourly load shapes by class'!S8787 -> 91548981.9
A9: Feed into OEB Cost Allocation Model sheet (version 50) "I8 Demand Data", row 40, 45, 50, 55, 61 and 67
D10: 1 | E10: 2 | F10: 3 | G10: 4 | H10: 5 | I10: 6 | J10: 8 | K10: 9 | L10: 10 | M10: 11 | N10: 12 | O10: 13 | P10: 14 | Q10: 15 | R10: 16 | S10: 17 | T10: 18 | U10: 19 | V10: 20
A11: Customer Classes | C11: Total | D11: Residential | E11: GS>50kW | F11: Street Lighting | G11: Sentinel Lighting | H11: USL | I11: GS<50
A13: CO-INCIDENT PEAK (kW)
A15: 1 CP
A16: Total Sytem CP | B16: DCP1 | C16: =SUM(D16:I16) -> 122892.4082 | D16: ='Hourly load shapes by class'!N8819 -> 57624.41557 | E16: ='Hourly load shapes by class'!O8819 -> 40654.16521 | F16: ='Hourly load shapes by class'!P8819 -> 0 | G16: ='Hourly load shapes by class'!Q8819 -> 0 | H16: ='Hourly load shapes by class'!R8819 -> 61.83209941 | I16: ='Hourly load shapes by class'!S8819 -> 24551.99533
A18: 4 CP
A19: Total Sytem CP | B19: DCP4 | C19: =SUM(D19:I19) -> 456183.4475 | D19: ='Hourly load shapes by class'!N8820 -> 216764.2831 | E19: ='Hourly load shapes by class'!O8820 -> 155442.5121 | F19: ='Hourly load shapes by class'!P8820 -> 574.7552369 | G19: ='Hourly load shapes by class'!Q8820 -> 55.68112757 | H19: ='Hourly load shapes by class'!R8820 -> 253.6537503 | I19: ='Hourly load shapes by class'!S8820 -> 83092.56222
A21: 12 CP
A22: Total Sytem CP | B22: DCP12 | C22: =SUM(D22:I22) -> 1249628.616 | D22: ='Hourly load shapes by class'!N8821 -> 595260.1908 | E22: ='Hourly load shapes by class'!O8821 -> 448499.3568 | F22: ='Hourly load shapes by class'!P8821 -> 3379.880299 | G22: ='Hourly load shapes by class'!Q8821 -> 311.4857868 | H22: ='Hourly load shapes by class'!R8821 -> 754.4937556 | I22: ='Hourly load shapes by class'!S8821 -> 201423.209
A24: NON CO_INCIDENT PEAK (kW)
A26: 1 NCP
A27: Classification NCP from Load Data Provider | B27: DNCP1 | C27: =SUM(D27:I27) -> 144821.674 | D27: ='Hourly load shapes by class'!N8802 -> 65587.71672 | E27: ='Hourly load shapes by class'!O8802 -> 47556.92657 | F27: ='Hourly load shapes by class'!P8802 -> 610.1689453 | G27: ='Hourly load shapes by class'!Q8802 -> 83.55210932 | H27: ='Hourly load shapes by class'!R8802 -> 66.09638213 | I27: ='Hourly load shapes by class'!S8802 -> 30917.2133
A29: 4 NCP
A30: Classification NCP from Load Data Provider | B30: DNCP4 | C30: =SUM(D30:I30) -> 540850.4887 | D30: ='Hourly load shapes by class'!N8803 -> 244761.4266 | E30: ='Hourly load shapes by class'!O8803 -> 182531.7009 | F30: ='Hourly load shapes by class'!P8803 -> 2397.867415 | G30: ='Hourly load shapes by class'!Q8803 -> 316.1924181 | H30: ='Hourly load shapes by class'!R8803 -> 257.7758903 | I30: ='Hourly load shapes by class'!S8803 -> 110585.5254
A32: 12 NCP
A33: Classification NCP from Load Data Provider | B33: DNCP12 | C33: =SUM(D33:I33) -> 1426599.279 | D33: ='Hourly load shapes by class'!N8804 -> 650527.3328 | E33: ='Hourly load shapes by class'!O8804 -> 494943.1813 | F33: ='Hourly load shapes by class'!P8804 -> 6978.629413 | G33: ='Hourly load shapes by class'!Q8804 -> 774.1174836 | H33: ='Hourly load shapes by class'!R8804 -> 754.4937556 | I33: ='Hourly load shapes by class'!S8804 -> 272621.5238
